{"text_format":"1","workbook":"xlsx","n_sheets":14,"sheets":["Manual","List","Input","Attached_1","Attached_2","Exclusion item","Attached_3","Attached_4","Out put","CriteriaRange","SearchChemical","Settings","SysOut","Temp"],"not_rendered":{"charts":0,"images":22,"macros":1,"external_links":5,"defined_names":20,"comments":0,"pivot_tables":0},"unopened":[],"bounds":{"document_bytes":16777216,"sheet_cells":100000,"rows_first":2000,"rows_last":500,"rows_between":2000,"halvings":0,"cell_chars":16384,"cell_head_chars":4096},"cells_cut":0,"cells_raw":0,"read":"whole","date_system":"1900"}

{"sheet":"Manual","index":0,"n_rows":3,"n_cols":29,"rows_kept":3,"cut":false,"hidden":false,"merged":[]}
[]
[]
[null,null,null,null,null,null,null,null,true,null,null,null,null,null,null,null,null,null,true,null,null,null,null,null,null,null,null,null,true]

{"sheet":"List","index":1,"n_rows":207,"n_cols":7,"rows_kept":207,"cut":false,"hidden":false,"merged":[[0,1,0,3]]}
[null,null,null,null,null,null,true]
[null,"対象品リスト(List of Object parts / 对象品清单)",null,null,null,null,6]
[]
[]
[null,null,null,null,"保存するとロックされます。\nIt is lockable when preserving. "]
[]
[null,"No,","品名\n(Parts name)","型式\n(Parts number)","品目コード\n(Item code / 品目号码)","入力状況\n(State of input)","評価ランク"]
[null,1]
[null,"2"]
[null,"3"]
[null,4]
[null,5]
[null,6]
[null,7]
[null,8]
[null,9]
[null,10]
[null,11]
[null,12]
[null,13]
[null,14]
[null,15]
[null,16]
[null,17]
[null,18]
[null,19]
[null,20]
[null,21]
[null,22]
[null,23]
[null,24]
[null,25]
[null,26]
[null,27]
[null,28]
[null,29]
[null,30]
[null,31]
[null,32]
[null,33]
[null,34]
[null,35]
[null,36]
[null,37]
[null,38]
[null,39]
[null,40]
[null,41]
[null,42]
[null,43]
[null,44]
[null,45]
[null,46]
[null,47]
[null,48]
[null,49]
[null,50]
[null,51]
[null,52]
[null,53]
[null,54]
[null,55]
[null,56]
[null,57]
[null,58]
[null,59]
[null,60]
[null,61]
[null,62]
[null,63]
[null,64]
[null,65]
[null,66]
[null,67]
[null,68]
[null,69]
[null,70]
[null,71]
[null,72]
[null,73]
[null,74]
[null,75]
[null,76]
[null,77]
[null,78]
[null,79]
[null,80]
[null,81]
[null,82]
[null,83]
[null,84]
[null,85]
[null,86]
[null,87]
[null,88]
[null,89]
[null,90]
[null,91]
[null,92]
[null,93]
[null,94]
[null,95]
[null,96]
[null,97]
[null,98]
[null,99]
[null,100]
[null,101]
[null,102]
[null,103]
[null,104]
[null,105]
[null,106]
[null,107]
[null,108]
[null,109]
[null,110]
[null,111]
[null,112]
[null,113]
[null,114]
[null,115]
[null,116]
[null,117]
[null,118]
[null,119]
[null,120]
[null,121]
[null,122]
[null,123]
[null,124]
[null,125]
[null,126]
[null,127]
[null,128]
[null,129]
[null,130]
[null,131]
[null,132]
[null,133]
[null,134]
[null,135]
[null,136]
[null,137]
[null,138]
[null,139]
[null,140]
[null,141]
[null,142]
[null,143]
[null,144]
[null,145]
[null,146]
[null,147]
[null,148]
[null,149]
[null,150]
[null,151]
[null,152]
[null,153]
[null,154]
[null,155]
[null,156]
[null,157]
[null,158]
[null,159]
[null,160]
[null,161]
[null,162]
[null,163]
[null,164]
[null,165]
[null,166]
[null,167]
[null,168]
[null,169]
[null,170]
[null,171]
[null,172]
[null,173]
[null,174]
[null,175]
[null,176]
[null,177]
[null,178]
[null,179]
[null,180]
[null,181]
[null,182]
[null,183]
[null,184]
[null,185]
[null,186]
[null,187]
[null,188]
[null,189]
[null,190]
[null,191]
[null,192]
[null,193]
[null,194]
[null,195]
[null,196]
[null,197]
[null,198]
[null,199]
[null,200]

{"sheet":"Input","index":2,"n_rows":81,"n_cols":14,"rows_kept":81,"cut":false,"hidden":true,"merged":[[80,5,80,10],[38,3,38,10],[58,3,58,10],[64,3,64,10],[1,1,1,9],[4,3,4,5],[5,3,5,5],[4,6,4,7],[5,6,5,7],[2,1,2,8],[14,3,14,10],[19,3,19,10],[35,5,35,10],[43,5,43,10],[55,5,55,9]]}
[8,"Input"]
[null,"セイコーエプソン㈱　マイクロデバイス事業部(水晶デバイス事業）　禁止管理物質に対する入力帳票\n (SEIKO EPSON (Quartz Device Business)  Input document of \"Banned & Control substance\" / 精工爱普生有限公司　微型制品事业部 （水晶制品事业） 禁止管理物质入力帐票)",null,null,null,null,null,null,null,null,null,null,null,"A　：　リスクなし（禁止物質の使用なし(閾値満足)/管理物質の含有なし）"]
[null,"以下の品目に対して、各項目ごとに該当するチェックボックスへご入力下さい。\n(Please input the check of the following question on the corresponding item of each item.  / 以下的项目，在每个项目的选择框里进行入力)",null,null,null,null,null,null,null,null,null,null,null,"B　：　リスクなし（禁止物質の使用なし(閾値満足)/管理物質の使用and/or含有あり）"]
[null,"■対象品目 (Object parts)",null,null,null,null,null,null,null,null,null,null,null,"C　：　リスクあり（禁止物質の使用and/or含有あり：閾値未満(除外含む)）"]
[null,null,"No","品目名 (Parts name)",null,null,"型式 (Parts number)",null,"入力状況(State of input)"]
[null,null,1,"ABC",null,null,"ABC",null,"2:未入力 (Not input)"]
[]
[]
[]
[]
[]
[]
[null,"■入力項目 (Input item)"]
[]
[null,null,"含有禁止物質\n (Presenc Banned Substance)\n (无条件禁止物质)","設問1.含有禁止物質(Attached_1)を含有していますか?\n(Question1. Is (Presenc Banned Substance of Attached_1 contained?) / 问题1：是否含有无条件禁止物质（Attached_1）？)"]
[]
[]
[]
[]
[null,null,"禁止物質\n (Banned Substance)\n (禁止物质)","設問2．禁止物質(Attached_2)を使用していますか?\n(Question2. Is Banned Substance of Attached_2 used? / 问题2：是否使用禁止物质（Attached_2）？)"]
[]
[]
[]
[]
[null,null,null,null,null,"含有量(ppm)*\nContained (ppm)*","CAS No,","物質名\nSubstance name","含有部位\nContained part","含有目的\nUsage","適用除外No\n(Exclusion item No)"]
[null,null,null,null,1]
[null,null,null,null,2]
[null,null,null,null,3]
[null,null,null,null,4]
[null,null,null,null,5]
[null,null,null,null,6]
[null,null,null,null,7]
[null,null,null,null,8]
[null,null,null,null,9]
[null,null,null,null,10]
[null,null,null,null,null,"*含有量の単位は、均質材料ごととする。\n  (Contained Level(ppm) is assumed to be a unit of the homogeneous material.  / 含有量单位：每个均质材料)"]
[]
[]
[null,null,null,"設問3.禁止物質の閾値（Attached_3)を満足しますか?\n (Question3. Is threshold of Banned substance of Attaced_3 contented? / 问题3：是否满足禁止物质的界限值（Attached_3）?)"]
[]
[]
[]
[]
[null,null,null,null,null,"*RoHS指令除外項目に該当する用途の場合、設問2へご回答下さい。\n  (The usage that corresponds to the RoHS Directive exclusion item is please answer of question 2. / RoHS指令以外项目的场合，请在问题回答)"]
[null,null,null,null,null,"含有量(ppm)*\nContained (ppm)*","CAS No,","物質名\nSubstance name","含有部位\nContained part","含有目的\nUsage"]
[null,null,null,null,1]
[null,null,null,null,2]
[null,null,null,null,3]
[null,null,null,null,4]
[null,null,null,null,5]
[null,null,null,null,6]
[null,null,null,null,7]
[null,null,null,null,8]
[null,null,null,null,9]
[null,null,null,null,10]
[null,null,null,null,null,"*含有量の単位は、均質材料ごととする。\n  (Contained Level(ppm) is assumed to be a unit of the homogeneous material.  / 含有量单位：每个均质材料)"]
[]
[]
[null,null,"管理物質\n (Control substance)\n (管理物质)","設問4.管理物質(Attached_4)を使用していますか?\n (Question4. Is Control substance of Attached_4 used? / 问题4：是否使用管理物质（Attached_4）？)"]
[]
[]
[]
[]
[]
[null,null,null,"設問5.管理物質(Attached_4)は不純物として含有していますか?\n (Question5.Does Control substance of Attached_4 contain it as impurities? / 问题5：管理物质是否含有不纯物（Attached_4）？)"]
[]
[]
[]
[]
[null,null,null,null,null,"含有量(ppm)*\nContained (ppm)*","CAS No,","物質名\nSubstance name","含有部位\nContained part","含有目的\nUsage","分類\n(Identification)"]
[null,null,null,null,1]
[null,null,null,null,2]
[null,null,null,null,3]
[null,null,null,null,4]
[null,null,null,null,5]
[null,null,null,null,6]
[null,null,null,null,7]
[null,null,null,null,8]
[null,null,null,null,9]
[null,null,null,null,10]
[null,null,null,null,null,"*含有量の単位は、均質材料ごととする。\n  (Contained Level(ppm) is assumed to be a unit of the homogeneous material.  / 含有量单位：每个均质材料)"]

{"sheet":"Attached_1","index":3,"n_rows":55,"n_cols":6,"rows_kept":55,"cut":false,"hidden":false,"merged":[[44,5,45,5]]}
[]
[null,"含有禁止物質 (Presence Banned Substance / 禁止含有物质)"]
[]
[null,"No,","化学物質(群）名","Substance (Group) name","CAS No","分析データの要否\n(Necessity of analysis data)"]
[null,1,"黄りんマッチ(黄りん)","White phosphorous match (white phosphorous)","12185-10-3"]
[null,2,"ベンジジン及びその塩","Benzidine and its salts","92-87-5 etc"]
[null,3,"4-アミノジフェニル及びその塩","4-aminodiphenyl / 4-aminodiphenyl and its salts","92-67-1 etc"]
[null,4,"4-ニトロジフェニル及びその塩","4-nitrodiphenyl and its salts","92-93-3 etc"]
[null,5,"ビス（クロロメチル）エーテル","Bis (chloromethyl) ether","542-88-1"]
[null,6,"2-ナフチルアミン／ベータナフチルアミン及びその塩","2-naphthylamine / beta-naphthylamine and its salts","91-59-8 etc"]
[null,7,"ベンゼンを含有するゴムのりで、その含有するベンゼンの容量が当該ゴムのりの溶剤（希釈剤を含む）の5%をこえるもの。","Rubber cement containing benzene, where the benzene accountsfor more than 5% of the rubber cement solvent (including diluting agent)","-"]
[null,8,"ポリ塩化ビフェニル類（PCB類）及び特定代替品","Polychlorinated biphenyls (PCBs) and specific substitutes","-"]
[null,9,"ポリ塩化ターフェニル類（PCT類）","Polychlorinated Terphenyls (PCT) (all isomers and congeners)","-"]
[null,10,"ヘキサクロロベンゼン","Hexachlorobenzene","118-74-1"]
[null,11,"アルドリン","Aldrin  ","309-00-2"]
[null,12,"ディルドリン","Dieldrin","60-57-1"]
[null,13,"エンドリン","Endrin","72-20-8"]
[null,14,"DDT","DDT","50-29-3"]
[null,15,"クロルデンまたはヘプタクロル","Chlordanes or Heptachlor","57-74-9 etc"]
[null,16,"ビス（トリブチルスズ）=オキシド (TBTO)","Bis (tributyltin) oxide (TBTO)","56-35-9"]
[null,17,"N,N'-ジトリル-パラ-フェニレンジアミン、N-トリル-N'-キシリル-パラ-フェニレンジアミン　または　N,N'-ジキシリル-パラ-フェニレンジアミン","N,N’-ditolyl-p-phenylenediamine, N-Tolyl-N'-xylyl-p-phenylenediamine, or N,N'-Dixylyl-pphenylenediamine","27417-40-9"]
[null,17,"N,N'-ジトリル-パラ-フェニレンジアミン、N-トリル-N'-キシリル-パラ-フェニレンジアミン　または　N,N'-ジキシリル-パラ-フェニレンジアミン","N,N’-ditolyl-p-phenylenediamine, N-Tolyl-N'-xylyl-p-phenylenediamine, or N,N'-Dixylyl-pphenylenediamine","28726-30-9"]
[null,17,"N,N'-ジトリル-パラ-フェニレンジアミン、N-トリル-N'-キシリル-パラ-フェニレンジアミン　または　N,N'-ジキシリル-パラ-フェニレンジアミン","N,N’-ditolyl-p-phenylenediamine, N-Tolyl-N'-xylyl-p-phenylenediamine, or N,N'-Dixylyl-pphenylenediamine","70290-05-0"]
[null,18,"2，4，6-トリ-tert-ブチルフェノール","2,4,6-tri-tert-butylphenol","732-26-3"]
[null,19,"トキサフェン","Toxaphene","8001-35-2"]
[null,20,"マイレックス","Mirex","2385-85-5"]
[null,21,"2，2，2-トリクロロ-1，1-ビス（4-クロロフェニル）エタノール\n（別名ケルセン又はジコホル）","2,2,2-trichloro-1,1-bis(4-chlorophenyl)ethanol  (Kelthane or Dicofol)","115-32-2"]
[null,22,"ヘキサクロロブタ-1，3-ジエン","Hexachlorobuta-1,3-diene","87-68-3"]
[null,23,"2-(2H-1,2,3-ベンゾトリアゾール-2-yl)-4,6-ジ-tert-ブチルフェノール （別名UV-320）","2-(2H-Benzo[d][1,2,3]triazol-2-yl)-4,6-di-tert-butylphenol (also known as UV-320)","3846-71-7"]
[null,24,"パーフルオロ（オクタン-1-スルホニル）＝フルオリド（PFOSF）","perfluorooctane sulfonyl fluoride (PFOS-F)","307-35-7"]
[null,25,"ペンタクロロベンゼン","Pentachlorobenzene","608-93-5"]
[null,26,"r-1，c-2，t-3，c-4，t-5，t-6-ヘキサクロロシクロヘキサン\n（別名α-ヘキサクロロシクロヘキサン）","Alpha hexachlorocyclohexane","319-84-6"]
[null,27,"r-1，t-2，c-3，t-4，c-5，t-6-ヘキサクロロシクロヘキサン\n（別名β-ヘキサクロロシクロヘキサン）","Beta hexachlorocyclohexane","319-85-7"]
[null,28,"r-1，c-2，t-3，c-4，c-5，t-6-ヘキサクロロシクロヘキサン\n（別名γ-ヘキサクロロシクロヘキサン又はリンデン）","Gamma hexachlorocyclohexane","58-89-9"]
[null,29,"デカクロロペンタシクロ［5．3．0．0(2，6)．0(3，9)．0(4，8)］デカン-5-オン　（別名クロルデコン）","Chlordecone","143-50-0"]
[null,30,"エンドスルファン","Endosulfan","115-29-7"]
[null,30,"エンドスルファン","Endosulfan","959-98-8"]
[null,30,"エンドスルファン","Endosulfan","33213-65-9"]
[null,31,"ヘキサブロモシクロドデカン（HBCDD）","Hexabromocyclododecane (HBCDD)","-"]
[null,32,"ペンタクロロフェノールまたはその塩もしくはエステル","Pentachlorophenol or its salts and esters","87-86-5 etc"]
[null,33,"DBBT（モノメチルジブロモジフェニルメタン）","DBBT (monomethyl-dibromo-diphenyl methane)","99688-47-8"]
[null,34,"DBB（ジ-μ-オキソ-ジ-n-ブチルスズヒドロキシボラン）","DBB (di-μ-oxo-di-n-butyltin hydroxyborane)","75113-37-0"]
[null,35,"モノメチルテトラクロロジフェニルメタン","Monomethyl-tetrachloro-diphenyl methane","76253-60-6"]
[null,36,"モノメチルジクロロジフェニルメタン","Monomethyl-dichloro-diphenyl methane","81161-70-8"]
[null,37,"ポリ臭化ビフェニル類（PBB類）","Polybrominated biphenyls (PBB)","EP-SN0065","必要（有機物のみ）\n(Necessity （Organic only）)"]
[null,38,"ポリ臭化ジフェニルエーテル類（PBDE類）","Polybrominated diphenylethers (PBDE)","EP-SN0066"]
[null,39,"ポリ塩化ナフタレン類(PCN類)（Cl ：1以上）","Polychlorinated naphthalene (Cl: 1or more)","-"]
[null,40,"アスベスト類","Asbestos","-"]
[null,41,"オゾン層破壊物質（CFC,Halon,HBFC,HCFC その他）","Ozone-depleting substances(CFC, Halon, HBFC, HCFC & others)","EP-SN0058"]
[null,42,"ジメチル＝フマラート（別名フマル酸ジメチル）","Dimethyl fumarate","624-49-7"]
[null,43,"短鎖型塩化パラフィン類（炭素数10～13）","Alkanes, C10-13, chloro (Short chain chlorinated paraffins)","-"]
[null,44,"パーフルオロオクタンスルホン酸（PFOS）およびその塩","Perfluorooctane sulfonates (PFOS) and its salt","-"]
[null,61,"パーフルオロオクタン酸 (PFOA)とその塩および 関連物質","Perfluorooctanoic acid (PFOA) and its salts and PFOA-related substances","EP-SN0036"]
[null,63,"フェノール, イソプロピルリン酸（3:1）(PIP(3:1))","Phenol, isopropylated phosphate (3:1) [PIP(3:1)]","68937-41-7"]
[null,64,"ペンタクロロチオフェノール(PCTP)","Pentachlorothiophenol (PCTP)","133-49-3"]

{"sheet":"Attached_2","index":4,"n_rows":73,"n_cols":5,"rows_kept":73,"cut":false,"hidden":false,"merged":[]}
[]
[null,"禁止物質 (Banned Substance / 禁止物质)"]
[]
[null,"No,","物質名(日）/Substance name(JPN)","物質名(英）/Substance name(EN)","CAS No"]
[null,1,"カドミウムおよびその化合物","Cadmium and its compounds","EP-SN9006"]
[null,2,"鉛およびその化合物","Lead and its compounds","EP-SN9007"]
[null,3,"水銀およびその化合物","Mercury and its compounds","EP-SN9008"]
[null,4,"六価クロム化合物","Hexavalent chromium compound","EP-SN9009"]
[null,5,"ヒ素及びその化合物","Arsenic and its compounds","EP-SN1059"]
[null,6,"臭素及びその化合物","Bromine and its compounds","EP-SN9003"]
[null,7,"塩素及びその化合物","Chlorine and its compounds","EP-SN9002"]
[null,8,"ベンゼン","Benzene","71-43-2"]
[null,9,"三置換有機スズ化合物","Tri-substituted organostannic compounds","EP-SN0068"]
[null,10,"ジオクチルスズ化合物(DOT)","Dioctyltin(DOT) compounds","EP-SN1009"]
[null,11,"ジブチルスズ化合物(DBT)","Dibutyltin(DBT) compounds","EP-SN1010"]
[null,12,"塩化コバルト","Cobalt dichloride","7646-79-9"]
[null,13,"アゾ化合物(アミン類,芳香族系)","Azo compound (amines and aromatic series)","EP-SN1050"]
[null,14,"酸化ベリリウム","Beryllium oxide","97330-34-2"]
[null,15,"ベリリウム銅","Copper Beriyllum","11108-64-8"]
[null,16,"過塩素酸塩","Perchloric acid","7601-90-3"]
[null,17,"フタル酸ビス（２－エチルヘキシル） (DEHP)","DEHP","117-81-7"]
[null,18,"フタル酸ジブチル (DBP)","DBP","84-74-2"]
[null,19,"フタル酸ブチルベンジル(BBP)","BBP","85-68-7"]
[null,20,"フタル酸ジイソブチル（DIBP）","DIBP","84-69-5"]
[null,21,"フタル酸ジイソノニル (DINP)","DINP","68515-48-0"]
[null,22,"フタル酸ジイソノニル (DINP)","DINP","28553-12-0"]
[null,23,"フタル酸ジイソデシル (DIDP)","DIDP","26761-40-0"]
[null,24,"フタル酸ジイソデシル (DIDP)","DIDP","68515-49-1"]
[null,25,"フタル酸ジ-n-オクチル (DnOP)","DnOP","117-84-0"]
[null,26,"フタル酸ジ-n-ヘキシル (DNHP)","DNHP","84-75-3"]
[null,27,"フタル酸エステル類(DEHP,DBP,BBP,DIBP,DINP,DIDP,DｎOP,DNHPを除く）","Phthalic esters(Excludes DEHP,DBP,BBP,DIBP,DINP,DIDP,DｎOP,DNHP）","EP-SN1006"]
[null,28,"三酸化アンチモン","Diantimony trioxide","1309-64-4"]
[null,29,"放射性物質","Radioactive substances","EP-SN0038"]
[null,30,"ビスフェノールA","Bisphenol A","80-05-7"]
[null,31,"ポリ塩化ビニル （PVC）/PVC混合物","Polyvinyl chloride (PVC)","9002-86-2"]
[null,32,"赤燐","Red phosphorus","7723-14-0"]
[null,33,"三塩化燐","Phosphorus trichloride","7719-12-2"]
[null,34,"五塩化燐","Phosphorane,pentachloro-","10026-13-8"]
[null,35,"七硫化四燐","Tetraphosphous heptasulphide","12037-82-0"]
[null,36,"三硫化二燐","Diphosphours trisulphide","12165-69-4"]
[null,37,"硫化燐","Phosphorus sulfide","1314-80-3"]
[null,38,"三硫化四燐","Phosphorus sulfide","1314-85-8"]
[null,39,"燐化アルミニウム","Aluminum phosphide","20859-73-8"]
[null,40,"三弗化燐","Phosphorous trifluoride","7783-55-3"]
[null,41,"ポリリン酸アンモニウム","Polyphosphoric acids, ammonium salts","68333-79-9"]
[null,42,"りん酸トリス(2-ブトキシエチル)","Ethanol, 2-butoxy-, phosphate (3:1)","78-51-3"]
[null,43,"メチルホスホン酸ジメチル","Dimethyl methylphosphonate","756-79-6"]
[null,44,"エチルホスホン酸ジエチル","Diethyl ethylphosphonate","78-38-6"]
[null,45,"(1,3-フェニレンジオキシ)ビス(ホスホン酸ジフェニル)","Tetraphenyl m-phenylene bis(phosphate)","57583-54-7"]
[null,46,"Antiblaze 19","Cyclic phosphonate ester","61840-22-0"]
[null,47,"[[ビス(2-ヒドロキシエチル)アミノ]メチル]ホスホン酸ジエチル","Diethyl {[N,N-bis(2-hydroxyethyl)amino]methyl}phosphonate","2781-11-5"]
[null,48,"りん酸クレジルジフェニル","Diphenyl tolyl phosphate","26444-49-5"]
[null,49,"りん酸ジフェニル=オクチル","Diphenyl octyl phosphate","115-88-8"]
[null,50,"りん酸トリス（２－エチルヘキシル）","Phosphoric acid, tris(2-ethylhexyl) ester","78-42-2"]
[null,51,"トリオクチルホスファート","Trioctyl phosphate","1806-54-8"]
[null,52,"りん酸 トリエチル","osphoric acid, triethyl ester","78-40-0"]
[null,53,"りん酸トリフェニル","Triphenyl phosphate","115-86-6"]
[null,54,"BNST","BNST","68921-45-9"]
[null,55,"ダイオキシン類","Dioxin","EP-SN1052"]
[null,56,"ジエチレン グリコール モノ-n-ブチル エーテル","2-(2-butoxyethoxy)ethanol; DEGBE","112-34-5"]
[null,57,"ジエチレングリコールモノメチルエーテル","Ethanol, 2-(2-methoxyethoxy)-;2-(2-methoxyethoxy)ethanol; DEGME","111-77-3"]
[null,58,"シクロヘキサン","Cyclohexane","110-82-7"]
[null,59,"ジメチルスルホキシド（DMSO)","Dimethyl Sulfoxide（DMSO)","67-68-5"]
[null,60,"りん酸トリ-o-クレジル","Phosphoric acid, tris(2-methylphenyl) ester","78-30-8"]
[null,61,"分岐および直鎖のフタル酸ジペンチル","Di-Isoamyl phthalate","84777-06-6"]
[null,62,"塩素化、臭素化リン酸エステル類","Chlorinated and brominated phosphate ester","EP-SN1056"]
[null,63,"リン酸トリス（1-メチル-2-クロロエチル）（TCPP)","Tris(2-chloro-1-methylethyl) phosphate (TCPP)","13674-84-5"]
[null,64,"リン酸トリス（1,3-ジクロロ-2-プロピル）（TDCPP)","Tris(1,3-dichloro-2-propyl) phosphate (TDCPP)","13674-87-8"]
[null,65,"リン酸トリス （2-クロロエチル）ホスフェート (TCEP)","Tris (2-chloroethyl) phosphate (TCEP)","115-96-8"]
[null,66,"シアン化合物（水濁法で禁止されるシアン化合物）","Cyanide(It limits to Water Pollution Prevention Act)","EP-SN1058"]
[null,67,"PAHｓ","PAHs","EP-SN1060"]
[null,68,"TSCA 重要新規利用規則対象 長鎖ペルフルオロアルキルカルボン酸化合物","Long-chain perfluoroalkyl carboxylate subject to the TSCA Significant New Use Rule","EP-SN1081"]
[null,69,"フッ素系温室効果ガス(PFCs, SF6, HFCs)類","Fluorinated greenhouse gases(PFCs, SF6, HFCs)","EP-SN1082"]

{"sheet":"Exclusion item","index":5,"n_rows":41,"n_cols":5,"rows_kept":41,"cut":false,"hidden":true,"merged":[[6,1,10,1],[11,1,39,1]]}
[]
[]
[null,"除外項目 (Exclusion item)",null,null,"戻る"]
[]
[]
[null,"免除対象物質群\n(Substance Group to be Eliminated)","No.","免除内容\n(Coverage)","記載期限\n(Written term)"]
[null,"カドミウム及びその化合物\n(Cadmium and its compounds)","8(b)","電気接点中のカドミウムとその化合物\n(Cadmium and its compounds in electrical contacts)"]
[null,null,"13(b)","フィルタガラスおよび反射標準物質用のガラス中に含まれるカドミウム\n(Cadmium and lead in filter glasses and glasses used for reflectance standards)"]
[null,null,21,"ホウケイ酸ガラスへのエナメル塗布用印刷インキに含まれるカドミウム\n(Lead and cadmium in printing inks for the application of enamels on glasses, such as borosilicate and soda lime glasses)"]
[null,null,30,"音圧レベル100dB(A)以上の高耐入力スピーカの変換器のボイスコイルに直付けされる導電体の電気的/機械的なはんだ接合部分のカドミウム合金\n(Cadmium alloys as electrical/mechanical solder joints to electrical conductors located directly on the voice coil in transducers used in high-powered loudspeakers with sound pressure levels of 100 dB (A) and more)"]
[null,null,38,"酸化ベリリウムと接合するアルミニウムに使われる、厚膜ペースト中のカドミウムおよび酸化カドミウム\n(Cadmium and cadmium oxide in thick film pastes used on aluminium bonded beryllium oxide)"]
[null,"鉛及びその化合物\n(Lead and its compounds)","5(a)","CRT(ブラウン管，冷極線管)のガラスに含まれる鉛\n(Lead in glass of cathode ray tubes)"]
[null,null,"5(b)","ガラス蛍光管であって鉛含有量が0.2wt%を超えないもの\n(Lead in the glass of fluorescent tubes not exceeding 0,2% by weight)"]
[null,null,"6(a)","機械加工のために合金成分として鋼材中及び亜鉛メッキ鋼板中に含まれる0.35 wt％までの鉛\n(Lead as an alloying element in steel for machining purposes and in galvanized steel containing up to 0.35% lead by weight)"]
[null,null,"6(b)","合金成分としてアルミニウムに含まれる0.4 wt％までの鉛\n(Lead as an alloying element in aluminium containing up to 0.4% lead by weight)"]
[null,null,"6(c)","鉛含有量が4wt%以下の銅合金\n(Copper alloy containing up to 4% lead by weight)"]
[null,null,"7(a)","高融点ハンダに含まれる鉛（すなわち鉛含有率が重量で85％以上の鉛ベースの合金）\n(Lead in high melting temperature type solders (i.e. lead-based alloys containing 85% by weight or more lead))"]
[null,null,"7(b)","サーバ，記憶装置，記憶アレイシステム，信号切り替え・送受信・伝送及び電気通信ネットワーク管理用のネットワーク基盤設備向けのはんだに含まれる鉛\n(Lead in solders for servers, storage and storage array systems, network infrastructure equipment for switching, signalling, transmission, and network management for telecommunications)"]
[null,null,"7(c)-I","コンデンサ内の誘電体セラミック以外のガラス中またはセラミック中に鉛を含む電気電子部品（例　圧電素子），もしくはガラスまたはセラミックを母材とする化合物中に鉛を含む電気電子部品\n(Electrical and electronic components containing lead in a glass or ceramic other than dielectric ceramic in capacitors, e.g. piezoelectronic devices, or in a glass or ceramic matrix compound)"]
[null,null,"7(c)-II ","定格電圧がAC125VまたはDC250Vまたはそれ以上のコンデンサ内の誘電体セラミック中の鉛\n(Lead in dielectric ceramic in capacitors for a rated voltage of 125 V AC or 250 V DC or higher)"]
[null,null,"7(c)-(Ⅳ)","集積回路またはディスクリート半導体の部品となるキャパシター用のPZTセラミック誘電材料中の鉛\n(Lead in PZT based dielectric ceramic materials for capacitors being part of integrated circuits or discrete semiconductors)"]
[null,null,"9(b)","冷媒管用のベアリング・シェル及びブッシュに含まれる鉛・・・・暖房用，換気用，空調用及び冷凍冷蔵（HVACR）機器のコンプレッサーを含む\n(Lead in bearing shells and bushes for refrigerant-containing compressors for heating, ventilation, air conditioning and refrigeration (HVACR) applications)"]
[null,null,"11(a)","C-プレス・コンプライアント・ピン・コネクタシステムに用いられる鉛\n(Lead used in C-press compliant pin connector systems)","官報掲載日より前に上市された電気電子機器用のスペアパーツについて\n(May be used in spare parts for EEE placed on the market before [insert the date of notification])"]
[null,null,12,"熱伝導モジュール形Cリング向けコーティング材料としての鉛\n(Lead as a coating material for the thermal conduction module C-ring)","官報掲載日より前に上市された電気電子機器用のスペアパーツについて\n(May be used in spare parts for EEE placed on the market before [insert the date of notification])"]
[null,null,"13(a)","光学機器に使われる白色ガラスに含まれる鉛\n(Lead in white glasses used for optical applications)"]
[null,null,"13(b)","フィルタガラスおよび反射標準物質用のガラス中に含まれる鉛\n(Cadmium and lead in filter glasses and glasses used for reflectance standards)"]
[null,null,15,"集積回路パッケージ（フリップチップ）の内部半導体ダイおよびキャリア間における確実な電気接続に必要なはんだに含まれる鉛\n(Lead in solders to complete a viable electrical connection between semiconductor die and carrier within integrated circuit flip chip packages)"]
[null,null,17,"プロフェッショナル向け複写用途に使用される高輝度放電（HID）ランプ中の、放射媒体としてのハロゲン化鉛\n(Lead halide as radiant agent in high intensity discharge (HID) lamps used for professional reprography applications)"]
[null,null,"18(b)","BSP (BaSi2O5:Pb) 等の蛍光体を含む日焼け用ランプとして使用される放電ランプの蛍光粉体の活性剤としての鉛(重量比1%以下)\n(Lead as activator in the fluorescent powder (1% lead by weight or less) of discharge lamps when used as sun tanning lamps containing phosphors such as BSP (BaSi2O5:Pb))"]
[null,null,21,"ホウケイ酸ガラスへのエナメル塗布用印刷インキに含まれる鉛\n(Lead and cadmium in printing inks for the application of enamels on glasses, such as borosilicate and soda lime glasses)"]
[null,null,23,"ピッチが0.65mm以下での微細ピッチコンポーネントの仕上げ処理が施された部位に含まれる鉛\n(Lead in finishes of fine pitch components other than connectors with a pitch of 0.65 mm and less)","官報掲載日より前に上市された電気電子機器用のスペアパーツについて\n(May be used in spare parts for EEE placed on the market before [insert the date of notification])"]
[null,null,24,"機械加工通し穴付き円盤状および平面アレーセラミック多層コンデンサへのはんだ付け用はんだに含まれる鉛\n(Lead in solders for the soldering to machined through hole discoidal and planar array ceramic multilayer capacitors)"]
[null,null,25,"構造要素に用いられる表面伝導電子エミッタ表示盤（SED）に含まれる酸化鉛。特に，シールフリット、フリットリングに含まれる酸化鉛\n(Lead oxide in surface conduction electron emitter displays (SED) used in structural elements, notably in the seal frit and frit ring)"]
[null,null,27,"高耐入力（125dB SPL以上の音響パワーレベルで数時間作動すると規定されている）スピーカに使用されるトランスデューサ用はんだとして用いられる鉛合金\n(Lead alloys as solder for transducers used in high-powered (designated to operate for several hours at acoustic power levels of 125 dB SPL and above) loudspeakers)","官報掲載日から期限終了\n(Expired on [insert the date of  notification])"]
[null,null,29,"理事会指令69/493/EECの付属書I（カテゴリ1、2、3および4）で定義されているクリスタルガラスに含まれる鉛\n(Lead bound in crystal glass as defined in Annex I (Categories 1, 2, 3 and 4) of Council Directive 69/493/EEC)"]
[null,null,31,"水銀を含有しない薄型蛍光ランプ（たとえば、液晶ディスプレイや、デザイン用または工業用照明に用いられるもの）に使用されるはんだ材の中の鉛\n(Lead in soldering materials in mercury free flat fluorescent lamps (which e.g. are used for liquid crystal displays, design or industrial lighting))"]
[null,null,32,"アルゴン・クリプトンレーザ管のウインドウ組立部品を形成するために用いられるシールフリット中の酸化鉛\n(Lead oxide in seal frit used for making window assemblies for Argon and Krypton laser tubes)"]
[null,null,33,"電力変圧器用の直径100ミクロン以下の細径銅線のはんだ付け用のはんだ中の鉛\n(Lead in solders for the soldering of thin copper wires of 100 μm diameter and less in power transformers)"]
[null,null,34,"サーメット（陶性合金）を主構成要素とするトリマー電位差計構成部品中の鉛\n(Lead in cermet-based trimmer potentiometer elements)"]
[null,null,37,"ホウ酸亜鉛ガラス基板上に形成する高電圧ダイオードのメッキ層中の鉛\n(Lead in the plating layer of high voltage diodes on the basis of a zinc borate glass body)"]
[null,"ヒ素及びその化合物\n(Arsenic and its compounds)","As_1","半導体のドーパントのヒ素\n（Arsenic in dopant of the semiconductor）"]

{"sheet":"Attached_3","index":6,"n_rows":30,"n_cols":8,"rows_kept":30,"cut":false,"hidden":false,"merged":[[3,5,3,6],[11,6,12,6],[11,7,12,7]]}
[]
[null,"禁止物質（閾値あり） (Banned Substance with threshold / 禁止物质（有界限值）)"]
[]
[null,"No,","化学物質(群）名","Substance (Group) name","CAS No","閾値　（均質材料中の含有量）\nThreshold (contained level(ppm) in homogeneous material)",null,"分析データの要否\n(Necessity of analysis data)"]
[null,1,"カドミウムおよびその化合物","Cadmium and its compounds","7440-43-9　etc…","半田\nSolder","<20ppm","必要\n（Necessity)"]
[null,1,null,null,null,"プラスチック材料（ゴム含む)、電気コード被覆、インク、基板材料\nPlastic material(incl. rubber), electric wire cover, ink, paint and circuit board materials","<5ppm"]
[null,1,null,null,null,"上記以外の全ての用途\nAll purposes other than the above","<75ppm"]
[null,2,"鉛およびその化合物","Lead and its compounds","7439-92-1　etc…","プラスチック材料（ゴム含む)、電気コード被覆、インク、基板材料\nplastic material(incl. rubber), electric wire cover, ink, paint and circuit board materials","<100ppm"]
[null,2,null,null,null,"上記以外の全ての用途\nAll purposes other than the above","<1000ppm"]
[null,3,"水銀およびその化合物","Mercury and its compounds","7439-97-6　etc…","全ての用途\nAll purposes","<1000ppm"]
[null,4,"六価クロム化合物","Hexavalent chromium compound","18540-29-9　etc…","全ての用途\nAll purposes","<1000ppm"]
[null,5,"臭素","Bromine and its compounds",null,"全ての用途\nAll purposes","<900ppm\nかつ、臭素および塩素の合計<1500ppm\n  <900ppm\n  　and Br+Cl is <1500ppm","必要（有機物のみ）\n(Necessity （Organic only）)"]
[null,6,"塩素","Chlorine and its compounds",null,"全ての用途\nAll purposes"]
[null,7,"ベンゼン","Benzene","71-43-2","全ての用途\nAll purposes","<1000ppm"]
[null,8,"三置換有機スズ化合物","Triorganotin compounds",null,"全ての用途\nAll purposes","<1000ppm"]
[null,9,"ジオクチルスズ化合物(DOT)","Dioctyltin compounds(DOT)",null,"全ての用途\nAll purposes","<1000ppm"]
[null,10,"ジブチルスズ化合物(DBT)","Dibutyltin compounds(DBT)",null,"全ての用途\nAll purposes","<1000ppm"]
[null,11,"塩化コバルト","Cobalt dichloride","7646-79-9","全ての用途\nAll purposes","<1000ppm"]
[null,12,"アゾ化合物(アミン類,芳香族系)","Azo compound\n (amines and aromatic series)",null,"全ての用途\nAll purposes","<30ppm"]
[null,13,"酸化ベリリウム","Beryllium oxide","97330-34-2","全ての用途\nAll purposes","<1000ppm"]
[null,14,"ベリリウム銅","Copper Beriyllum","11108-64-8","全ての用途\nAll purposes","<1000ppm"]
[null,15,"過塩素酸塩","Perchloric acid","7601-90-3","全ての用途\nAll purposes","<0.006ppm"]
[null,16,"フタル酸ビス（２－エチルヘキシル） (DEHP)","DEHP","117-81-7","全ての用途\nAll purposes","<1000ppm","必要\n（Necessity)"]
[null,16,null,null,null,"RoHS指令以外の用途（キャリングケース、梱包材を含む）\nPurpose other than RoHS directive(Including items such as carrying cases,packaging materials)","DEHP+DBP+BBP+DIBP<1000ppm"]
[null,17,"フタル酸ジブチル (DBP)","DBP","84-74-2","全ての用途\nAll purposes","<1000ppm"]
[null,17,null,null,null,"RoHS指令以外の用途（キャリングケース、梱包材を含む）\nPurpose other than RoHS directive(Including items such as carrying cases,packaging materials)","DEHP+DBP+BBP+DIBP<1000ppm"]
[null,18,"フタル酸ブチルベンジル(BBP)","BBP","85-68-7","全ての用途\nAll purposes","<1000ppm"]
[null,18,null,null,null,"RoHS指令以外の用途（キャリングケース、梱包材を含む）\nPurpose other than RoHS directive(Including items such as carrying cases,packaging materials)","DEHP+DBP+BBP+DIBP<1000ppm"]
[null,19,"フタル酸ジイソブチル（DIBP）","DIBP","84-69-5","全ての用途\nAll purposes","<1000ppm"]
[null,19,null,null,null,"RoHS指令以外の用途（キャリングケース、梱包材を含む）\nPurpose other than RoHS directive(Including items such as carrying cases,packaging materials)","DEHP+DBP+BBP+DIBP<1000ppm"]

{"sheet":"Attached_4","index":7,"n_rows":281,"n_cols":8,"rows_kept":281,"cut":false,"hidden":false,"merged":[]}
[]
[null,"管理物質 (Control substance / 管理物质)"]
[]
[null,"No,","物質名(日）/Substance name(JPN)","物質名(英）/Substance name(EN)","物質名","Substance name","CAS No","CAS No"]
[null,1,{"$f":"E5","v":"アンチモン"},{"$f":"F5","v":"Antimony"},"アンチモン","Antimony","7440-36-0","7440-36-0"]
[null,2,{"$f":"E6","v":"アンチモン酸ナトリウム"},"Sodium antimonate","アンチモン酸ナトリウム","Sodium antimonate","15432-85-6","15432-85-6"]
[null,3,"五酸化アンチモン","Diantimony pentoxide","五酸化アンチモン","Diantimony pentoxide","1314-60-9","1314-60-9"]
[null,4,"三塩化アンチモン","Antimony trichloride","三塩化アンチモン","Antimony trichloride","10025-91-9","10025-91-9"]
[null,5,"アンチモン化合物（および三酸化アンチモン及び上記 以外）",{"$f":"F9","v":"Antimony　compounds\n(Diantimony trioxide and the above-mentioned antimony is excluded.)"},"アンチモン化合物（および三酸化アンチモン及び上記 以外）","Antimony　compounds\n(Diantimony trioxide and the above-mentioned antimony is excluded.)","EP-SN1001","EP-SN1001"]
[null,6,"有機スズ化合物(三置換有機スズ、DOT、DBTを除く）","Organotin compounds\n(Excludes Trisubstituted organotin compounds,DOT,DBT)","有機スズ化合物(三置換有機スズ、DOT、DBTを除く）","Organotin compounds\n(Excludes Trisubstituted organotin compounds,DOT,DBT)","EP-SN0032","EP-SN0032"]
[null,7,"テトラブロモビスﾌｪﾉｰﾙA(TBBPA)","Tetrabromobisphenol A","テトラブロモビスﾌｪﾉｰﾙA(TBBPA)","Tetrabromobisphenol A","79-94-7","79-94-7"]
[null,8,{"$f":"E12","v":"中鎖型塩化パラフィン類(C14-17)"},"Medium chain chlorinated paraffins (C14-17)","中鎖型塩化パラフィン類(C14-17)","Medium chain chlorinated paraffins (C14-17)","EP-SN1076","EP-SN1076"]
[null,9,"臭素系難燃剤（PBB・PBDE以外）","Brominated flame retardants (except PBB/PBDE) ","臭素系難燃剤（PBB・PBDE以外）","Brominated flame retardants (except PBB/PBDE) ","EP-SN9005","EP-SN9005"]
[null,10,"塩素系難燃剤","Chlorinated flame retardants","塩素系難燃剤","Chlorinated flame retardants","EP-SN1003","EP-SN1003"]
[null,11,"ベリリウム及びその化合物","Beryllium and its compounds","ベリリウム","Beryllium","7440-41-7"]
[null,11,null,null,"ビス（アセチルアセトナト）ベリリウム","ACETYLACETONE BERYLLIUM SALT","10210-64-7"]
[null,11,null,null,"酸化ベリリウム (Be2O)","Beryllium oxide (Be2O)","12009-99-3"]
[null,11,null,null,"二ホウ化ベリリウム","Beryllium boride","12228-40-9"]
[null,11,null,null,"セレン化ベリリウム","Beryllium selenide","12232-25-6"]
[null,11,null,null,"テルル化ベリリウム","Beryllium telluride","12232-27-8"]
[null,11,null,null,"酸化ベリリウム (Be2O3)","Beryllium oxide (Be2O3)","12291-87-1"]
[null,11,null,null,"フッ化ベリリウム","Beryllium fluoride","12323-05-6"]
[null,11,null,null,"ホウ化ベリリウム(6:1)","Beryllium boride (BeB6), (OC-6-11)-","12429-94-6"]
[null,11,null,null,"ホウ化ベリリウム(1:2)","Beryllium boride (Be2B)","12536-51-5"]
[null,11,null,null,"ホウ化ベリリウム(1:4)","Beryllium boride (Be4B)","12536-52-6"]
[null,11,null,null,"酸化ベリリウム (BeO0.9)","Beryllium oxide (BeO0.9)","125466-18-4"]
[null,11,null,null,"ベリリウムーアルミニウム合金","Aluminum alloy, nonbase, Al, Be","12770-50-2"]
[null,11,null,null,"ちっ化ベリリウム","Beryllium nitride","1304-54-7"]
[null,11,null,null,"酸化ベリリウム (BeO)","Beryllium oxide (BeO)","1304-56-9"]
[null,11,null,null,"ベリリウムカーボネート（１：１）","Carbonic acid, beryllium salt (1:1)","13106-47-3"]
[null,11,null,null,"水酸化ベリリウム (Be(OH)2)","Beryllium hydroxide (Be(OH)2)","13327-32-7"]
[null,11,null,null,"塩化ベリリウム・４水和物","Beryllium chloride, tetrahydrate (8CI, 9CI)","13466-27-8"]
[null,11,null,null,"硝酸ベリリウム四水和物","Nitric acid, beryllium salt, tetrahydrate","13510-48-0"]
[null,11,null,null,"過塩素酸ベリリウム","Perchloric acid, beryllium salt (8CI, 9CI)","13597-95-0"]
[null,11,null,null,"硝酸ベリリウム","Beryllium nitrate trihydrate","13597-99-4"]
[null,11,null,null,"リン酸水素ベリリウム","BERYLLIUM COMPOUND, N.O.S.","13598-15-7"]
[null,11,null,null,"硫酸ベリリウム","Beryllium sulfide","13598-22-6"]
[null,11,null,null,"リン酸ベリリウム","Phosphoric acid, beryllium salt (2:3)","13598-26-0"]
[null,11,null,null,"塩化ベリリウム（BeCl）","Beryllium chloride (BeCl)","13814-50-1"]
[null,11,null,null,"四フッ化ベリリウム酸ナトリウム","Disodium tetrafluoroberyllate","13871-27-7"]
[null,11,null,null,"四フッ化ベリリウム酸リチウム","Beryllate(2-), tetrafluoro-, dilithium, (T-4)-","13874-36-7"]
[null,11,null,null,"四フッ化ベリリウム酸アンモニウム","Beryllium diammonium tetrafluoride","14874-86-3"]
[null,11,null,null,"ケイ酸ベリリウム","Beryllium orthosilicate","15191-85-2"]
[null,11,null,null,"四フッ化ベリリウム酸バリウム","Beryllate(2-), tetrafluoro-, barium (1:1), (T-4)- (9CI)","15339-40-9"]
[null,11,null,null,"四フッ化ベリリウム酸・２水素","Beryllate(2-), tetrafluoro-, dihydrogen, (T-4)- (9CI)","16923-64-1"]
[null,11,null,null,"ベリリウムアセテートオキシド","Hexakis[mu-(acetato-O:O')]-mu4-oxotetraberyllium","19049-40-2"]
[null,11,null,null,"水酸化ベリリウム (Be(OH))","Beryllium hydroxide (Be(OH))","20768-68-7"]
[null,11,null,null,"ケイ酸ベリリウム亜鉛","Beryllium zinc silicate","25638-88-4"]
[null,11,null,null,"リン酸ベリリウム","Beryllium phosphate","35089-00-0"]
[null,11,null,null,"ケイ酸ベリリウム亜鉛塩類","Zinc beryllium silicate","39413-47-3"]
[null,11,null,null,"炭化ベリリウム","Beryllium acetylide","506-66-1"]
[null,11,null,null,"四フッ化ベリリウム酸カルシウム","Beryllate(2-), tetrafluoro-, calcium (1:1), (T-4)- (9CI)","53514-39-9"]
[null,11,null,null,"ジエチルベリリウム","Diethylberyllium","542-63-2"]
[null,11,null,null,"酢酸ベリリウム","Beryllium Acetate","543-81-7"]
[null,11,null,null,"リン化ベリリウム","Beryllium phosphide; BeP2","57620-29-8"]
[null,11,null,null,"リン化ベリリウム","Beryllium phosphide","58127-61-0"]
[null,11,null,null,"ケイ酸ベリリウム","Silicic acid, beryllium salt","58500-38-2"]
[null,11,null,null,"炭酸ベリリウム","Beryllium carbonate, basic","66104-24-3"]
[null,11,null,null,"臭化ベリリウム","Beryllium bromide","7787-46-4"]
[null,11,null,null,"塩化ベリリウム","Beryllium chloride (BeCl2)","7787-47-5"]
[null,11,null,null,"フッ化ベリリウム","Beryllium fluoride","7787-49-7"]
[null,11,null,null,"四フッ化ベリリウム酸カリウム","Beryllate(2-), tetrafluoro-, dipotassium, (T-4)- (9CI)","7787-50-0"]
[null,11,null,null,"二水素ベリリウム","Beryllium hydride","7787-52-2"]
[null,11,null,null,"ヨウ化ベリリウム","Beryllium iodide","7787-53-3"]
[null,11,null,null,"硝酸ベリリウム三水和物","Beryllium nitrate trihydrate","7787-55-5"]
[null,11,null,null,"硫酸ベリリウム（四水塩）","Beryllium sulphate tetrahydrate","7787-56-6"]
[null,11,null,null,"酸化ベリリウム (BeO2)","Beryllium oxide (BeO2)","97330-34-2"]
[null,11,null,null,"ベリリウム銅","Copper Beriyllum","11108-64-8"]
[null,11,null,null,"ベリリウム化合物（上記以外）","Beryllium and its compounds (The above-mentioned substance is excluded)","EP-SN1057"]
[null,12,{"$f":"E70","v":"ポリアセタール（POM）"},"POM","ポリアセタール（POM）","POM","9002-81-7","9002-81-7"]
[null,13,"ビスマス及びその化合物","Bismuth and its compounds","ビスマス","Bismuth","7440-69-9"]
[null,13,null,null,"水酸化ビスマス","Bismuth hydroxide","10361-43-0"]
[null,13,null,null,"硝酸ビスマス","Bismuth nitrate","10361-44-1"]
[null,13,null,null,"塩基性硝酸ビスマス","(nitrooxy)oxobismuthine","10361-46-3"]
[null,13,null,null,"ジルコン酸ビスマス","Bismuth zirconium oxide","110687-32-6"]
[null,13,null,null,"硫化ビスマス","Bismuth sulfide","11104-47-5"]
[null,13,null,null,"チタン酸ビスマス","Bismuth titanium oxide","11115-71-2"]
[null,13,null,null,"ニビスマスニ鉛三ルテニウム三デカオキシド","Dibismuth dilead tetraruthenium tridecaoxide","11116-83-9"]
[null,13,null,null,"テルル化ビスマス (Bi2Te3.7)","Bismuth telluride (Bi2Te3.7)","111821-78-4"]
[null,13,null,null,"酸化ビスマス","Bismuth oxide","113215-68-2"]
[null,13,null,null,"水酸化ビスマス","Bismuth hydroxide","114753-60-5"]
[null,13,null,null,"水酸化ビスマス","Bismuth hydroxide","114753-61-6"]
[null,13,null,null,"テルル化ビスマス (Bi1.8-2.2Te3)","Bismuth telluride (Bi1.8-2.2Te3)","116117-03-4"]
[null,13,null,null,"硫化ビスマス","Bismuth sulfide","117774-11-5"]
[null,13,null,null,"硫化ビスマス","Bismuth sulfide","117774-12-6"]
[null,13,null,null,"チタン酸ビスマス (Bi1.95Ti0.02O2.98)","Bismuth titanium oxide (Bi1.95Ti0.02O2.98)","118407-35-5"]
[null,13,null,null,"チタン酸ビスマス (Bi1.9Ti0.05O2.95)","Bismuth titanium oxide (Bi1.9Ti0.05O2.95)","118407-36-6"]
[null,13,null,null,"チタン酸ビスマス (Bi1.85Ti0.08O2.92)","Bismuth titanium oxide (Bi1.85Ti0.08O2.92)","118407-37-7"]
[null,13,null,null,"チタン酸ビスマス (Bi1.75Ti0.12O2.88)","Bismuth titanium oxide (Bi1.75Ti0.12O2.88)","118407-38-8"]
[null,13,null,null,"チタン酸ビスマス (Bi1.71Ti0.14O2.86)","Bismuth titanium oxide (Bi1.71Ti0.14O2.86)","118407-39-9"]
[null,13,null,null,"チタン酸ビスマス (Bi1.4Ti0.3O2.7)","Bismuth titanium oxide (Bi1.4Ti0.3O2.7)","118407-40-2"]
[null,13,null,null,"チタン酸ビスマス (Bi1.2Ti0.4O2.6)","Bismuth titanium oxide (Bi1.2Ti0.4O2.6)","118407-41-3"]
[null,13,null,null,"テルル化ビスマス (BiTe)","Bismuth telluride (BiTe)","12010-57-0"]
[null,13,null,null,"スズ酸ビスマス","Bismuth tin oxide (Bi2Sn3O9)","12010-67-2"]
[null,13,null,null,"チタン酸ビスマス (Bi2Ti3O9)","Dibismuth trititanium nonaoxide","12010-68-3"]
[null,13,null,null,"テルル化ビスマス (Bi2Te)","Bismuth telluride (Bi2Te)","12010-73-0"]
[null,13,null,null,"チタン酸ビスマス (Bi4Ti3O12)","Tetrabismuth trititanium dodecaoxide","12010-77-4"]
[null,13,null,null,"ビスマス／鉛，（１：１）","Bismuth, compound with lead (1:1)","12048-28-1"]
[null,13,null,null,"硫化ビスマス","Bismuth sulfide","12048-34-9"]
[null,13,null,null,"ビスマス／タリウム，（１：１）","Bismuth, compd. with thallium (1:1)","12048-36-1"]
[null,13,null,null,"酸化ビスマス","Bismuth oxide","12048-50-9"]
[null,13,null,null,"チタン酸ビスマス (Bi2Ti2O7)","Dibismuth dititanium heptaoxide","12048-51-0"]
[null,13,null,null,"ジルコン酸ビスマス","Bismuth zirconium oxide (Bi2Zr3O9)","12048-52-1"]
[null,13,null,null,"セレン化ビスマス","Bismuth selenide (Bi2Se3)","12068-69-8"]
[null,13,null,null,"チタン酸ビスマス (Bi2Ti4O11)","Bismuth titanium oxide (Bi2Ti4O11)","12233-34-0"]
[null,13,null,null,"チタン酸ビスマス (Bi8TiO14)","Bismuth titanium oxide (Bi8TiO14)","12233-69-1"]
[null,13,null,null,"チタン酸ビスマス (BiTiO3)","Bismuth titanium oxide (BiTiO3)","12267-82-2"]
[null,13,null,null,"酸化ビスマス","Bismuth oxide","12323-17-0"]
[null,13,null,null,"硫化ビスマス","Bismuth sulfide","12323-18-1"]
[null,13,null,null,"スズ酸ビスマス","Bismuth stannate","12338-09-9"]
[null,13,null,null,"テルル化ビスマス (Bi2Te3.32)","Bismuth telluride (Bi2Te3.32)","124058-74-8"]
[null,13,null,null,"チタン酸ビスマス (Bi12TiO20)","Bismuth titanium oxide (Bi12TiO20)","12441-73-5"]
[null,13,null,null,"ジルコン酸ビスマス (Bi0.86Zr0.57O2.43)","Bismuth zirconium oxide (Bi0.86Zr0.57O2.43)","124504-07-0"]
[null,13,null,null,"スズ酸ビスマス","Bismuth stannate","124504-08-1"]
[null,13,null,null,"チタン酸ビスマス (Bi0.86Ti0.57O2.43)","Bismuth titanium oxide (Bi0.86Ti0.57O2.43)","124504-09-2"]
[null,13,null,null,"酸化ビスマス","Bismuth oxide","12640-40-3"]
[null,13,null,null,"ビスマス／ニッケル，（１：１）","Bismuth, compound with nickel (1:1)","12688-64-1"]
[null,13,null,null,"酸化ビスマス","Bismuth oxide","127241-68-3"]
[null,13,null,null,"酸化ビスマス","Bismuth oxide","127336-53-2"]
[null,13,null,null,"酸化ビスマス","Bismuth oxide","127336-54-3"]
[null,13,null,null,"酸化ビスマス","Bismuth oxide","127336-55-4"]
[null,13,null,null,"スズ酸ビスマス","Bismuth tin oxide","12777-45-6"]
[null,13,null,null,"チタン酸ビスマス (Bi12Ti0.9O19.8)","Bismuth titanium oxide (Bi12Ti0.9O19.8)","127860-72-4"]
[null,13,null,null,"酸化ビスマス","Bismuth oxide","128089-74-7"]
[null,13,null,null,"テルル化ビスマス (Bi0.37-0.41Te0.59-0.63)","Bismuth telluride (Bi0.37-0.41Te0.59-0.63)","130358-77-9"]
[null,13,null,null,"テルル化ビスマス (Bi2Te3.13)","Bismuth telluride (Bi2Te3.13)","130358-78-0"]
[null,13,null,null,"テルル化ビスマス (Bi2Te2.9)","Bismuth telluride (Bi2Te2.9)","130358-79-1"]
[null,13,null,null,"酸化ビスマス","Bismuth oxide","1304-76-3"]
[null,13,null,null,"テルル化ビスマス (Bi2Te3)","Bismuth telluride (Bi2Te3)","1304-82-1"]
[null,13,null,null,"塩基性硝酸ビスマス","Bismuth hydroxide nitrate oxide","1304-85-4"]
[null,13,null,null,"テルル化ビスマス (Bi2Te3.1)","Bismuth telluride (Bi2Te3.1)","132111-03-6"]
[null,13,null,null,"酸化ビスマス","Bismuth oxide","1332-64-5"]
[null,13,null,null,"スズ酸ビスマス","Bismuth stannate","133741-04-5"]
[null,13,null,null,"スズ酸ビスマス","Bismuth stannate","133741-07-8"]
[null,13,null,null,"チタン酸ビスマス (Bi2Ti1-5O5-13)","Bismuth titanium oxide (Bi2Ti1-5O5-13)","133854-72-5"]
[null,13,null,null,"硫化ビスマス","Bismuth sulfide","1345-07-9"]
[null,13,null,null,"テルル化ビスマス (Bi0.36-0.46Te0.54-0.64)","Bismuth telluride (Bi0.36-0.46Te0.54-0.64)","134741-28-9"]
[null,13,null,null,"テルル化ビスマス (Bi2Te2.67)","Bismuth telluride (Bi2Te2.67)","134775-57-8"]
[null,13,null,null,"スズ酸ビスマス","Bismuth stannate","134776-30-0"]
[null,13,null,null,"塩化ビスマス (BiCl2)","Bismuth chloride (BiCl2)","13494-88-7"]
[null,13,null,null,"酸化ビスマス","Bismuth oxide","136048-65-2"]
[null,13,null,null,"スズ酸ビスマス","Bismuth stannate","137002-05-2"]
[null,13,null,null,"ヒ酸（Ｈ３ＡｓＯ４）ビスマス塩（１：１）","Arsenic acid (H3AsO4), bismuth salt (1:1)","13702-38-0"]
[null,13,null,null,"フッ化ビスマス","Bismuth fluoride","13827-23-1"]
[null,13,null,null,"酸化ビスマスバナジウム（ＢｉＶＯ４）","Bismuth vanadium oxide (BiVO4)","14059-33-7"]
[null,13,null,null,"塩基性サリチル酸ビスマス","Basic bismuth salicylate","14882-18-9"]
[null,13,null,null,"塩化ビスマス (BiCl)","Bismuth chloride (BiCl)","14899-70-8"]
[null,13,null,null,"ネオデカン酸ビスマス（３＋）（構造不定）","Neodecanoic acid, bismuth(3+) salt (3:1)","34364-26-6"]
[null,13,null,null,"酸化ビスマス","Bismuth oxide","35984-07-7"]
[null,13,null,null,"クロム酸ビスマス","Dibismuth dichromium nonaoxide","37235-82-8"]
[null,13,null,null,"ジルコン酸ビスマス (Bi4Zr3O12)","Tetrabismuth trizirconium dodecaoxide","37306-42-6"]
[null,13,null,null,"チタン酸ビスマス (Bi2TiO5)","Bismuth titanium oxide (Bi2TiO5)","37368-61-9"]
[null,13,null,null,"酸化ビスマス","Bismuth oxide","39326-72-2"]
[null,13,null,null,"酸化ビスマスジルコニウム（Ｂｉ２ＺｒＯ５）","Dibismuth zirconium pentaoxide","53125-66-9"]
[null,13,null,null,"バナジン酸ビスマス（組成不定）","Bismuth vanadium oxide","53801-77-7"]
[null,13,null,null,"塩化ビスマス (BiCl3)","Bismuth chloride (BiCl3)","56452-11-0"]
[null,13,null,null,"塩基性炭酸ビスマス","Bismuth carbonate oxide (Bi2(CO3)O2)",1458327]
[null,13,null,null,"ジルコン酸ビスマス (Bi2Zr2O7)","Bismuth zirconium oxide (Bi2Zr2O7)","59317-24-7"]
[null,13,null,null,"トリフェニルビスマス","Bismuthine, triphenyl-","603-33-8"]
[null,13,null,null,"チタン酸ビスマス (Bi18TiO29)","Bismuth titanium oxide (Bi18TiO29)","60650-07-9"]
[null,13,null,null,"酸化ビスマス鉛ルテニウム","Bismuth lead ruthenium oxide","65229-22-3"]
[null,13,null,null,"シュウ酸ビスマス（３＋）","Ethanedioic acid, bismuth(3+) salt (3:2)","6591-55-5"]
[null,13,null,null,"ビスマス＝トリス（２－エチルヘキサノアート）","Bismuth tris(2-ethylhexanoate)","67874-71-9"]
[null,13,null,null,"ビスマス豊富の鉛入りドロス","Lead, dross, bismuth-rich","69029-46-5"]
[null,13,null,null,"テルル化ビスマス (Bi4Te3)","Bismuth telluride (Bi4Te3)","69431-11-4"]
[null,13,null,null,"トリアビエチン酸ビスマス（ＩＩＩ）","1-Phenanthrenecarboxylic acid, 1,2,3,4,4a,4b,5,6,10,10a-decahydro-1,4a-dimethyl-7-(1-methylethyl)-, bismuth(3+) salt, (1R,4aR,4bR,10aR)-","74113-43-2"]
[null,13,null,null,"酸化ビスマス","Bismuth oxide","76214-86-3"]
[null,13,null,null,"オキシ塩化ビスマス","Bismuth chloride oxide","7787-59-9"]
[null,13,null,null,"塩化ビスマス","Bismuth trichloride","7787-60-2"]
[null,13,null,null,"フッ化ビスマス","Bismuth fluoride","7787-61-3"]
[null,13,null,null,"フッ化ビスマス","Bismuth fluoride","7787-62-4"]
[null,13,null,null,"オキシヨー化ビスマス","Bismuth iodide oxide","7787-63-5"]
[null,13,null,null,"次没食子酸ビスマス","Bismuth subgallate","99-26-3"]
[null,14,"セレン及びその化合物","Selenium and its compounds","セレン","Selenium","7782-49-2"]
[null,14,null,null,"塩化セレン","Diselenium dichloride","10025-68-0"]
[null,14,null,null,"四塩化セレン","Selenium tetrachloride","10026-03-6"]
[null,14,null,null,"亜セレン酸コバルト（２＋）","Cobalt(2+) selenite","10026-23-0"]
[null,14,null,null,"セレン酸銅（II）・５水和物","COPPER(II)SELENATE PENTAHYDRATE  ","10031-45-5"]
[null,14,null,null,"セレン酸カドミウム・２水和物","Selenic acid, cadmium salt, dihydrate","10060-09-0"]
[null,14,null,null,"亜セレン酸ニッケル（２＋）","Nickel(2+) selenite","10101-96-9"]
[null,14,null,null,"セレン酸ニッケル（II）・６水和物","NICKEL(II)SELENATE HEXAHYDRATE","10101-99-2"]
[null,14,null,null,"亜セレン酸ナトリウム","Disodium selenium trioxide","10102-18-8"]
[null,14,null,null,"セレン酸ナトリウム・１０水和物","SODIUM SELENATE DECAHYDRATE ","10102-23-5"]
[null,14,null,null,"ジメチルセレン","Dimethyl selenide","10112-94-4"]
[null,14,null,null,"亜硫酸カドミウム、亜セレン酸亜鉛、亜硫酸亜鉛混合物の固溶体中の亜セレン酸カドミウムアルミニウムと銅ドープ塗料","Cadmium selenide (CdSe), solid soln. with cadmium sulfide, zinc selenide and zinc sulfide, aluminum and copper-doped","101357-00-0"]
[null,14,null,null,"亜硫酸カドミウム、亜セレン酸亜鉛、亜硫酸亜鉛混合物の固溶体中の亜セレン酸カドミウム銅とマンガンドープ塗料","Cadmium selenide (CdSe), solid soln. with cadmium sulfide, zinc selenide and zinc sulfide, copper and manganese-doped","101357-01-1"]
[null,14,null,null,"亜硫酸カドミウム、亜セレン酸亜鉛、亜硫酸亜鉛混合物固溶体中の亜セレン酸カドミウムユーロピウムドープ塗料","Cadmium selenide (CdSe), solid soln. with cadmium sulfide, zinc selenide and zinc sulfide, europium-doped","101357-02-2"]
[null,14,null,null,"亜硫酸カドミウム、亜セレン酸亜鉛、亜硫酸亜鉛混合物の固溶体中の亜セレン酸カドミウム金とマンガンドープ塗料","Cadmium selenide (CdSe), solid soln. with cadmium sulfide, zinc selenide and zinc sulfide, gold and manganese-doped","101357-03-3"]
[null,14,null,null,"亜硫酸カドミウム、亜セレン酸亜鉛、亜硫酸亜鉛混合物の固溶体中の亜セレン酸カドミウムマンガンと銀ドープ塗料","Cadmium selenide (CdSe), solid soln. with cadmium sulfide, zinc selenide and zinc sulfide, manganese and silver-doped","101357-04-4"]
[null,14,null,null,"亜セレン酸カリウム","POTASSIUM SELENITE ","10431-47-7"]
[null,14,null,null,"硫化セレンカドミウム","Cadmium selenide sulphide","11112-63-3"]
[null,14,null,null,"セレン化ガリウム（ＧａＳｅ）","Gallium selenide (GaSe)","12024-11-2"]
[null,14,null,null,"セレン化ニオブ（ＮｂＳｅ２）","Niobium selenide (NbSe2)","12034-77-4"]
[null,14,null,null,"セレン化タリウム（Ⅰ）","Thallium(I) selenide","12039-52-0"]
[null,14,null,null,"セレン化タンタル（ＴａＳｅ２）","Tantalum selenide (TaSe2)","12039-55-3"]
[null,14,null,null,"セレン化クロム（ＣｒＳｅ）","Selenium and its compounds","12053-13-3"]
[null,14,null,null,"セレン化インジウム（Ｉｎ２Ｓｅ３）","Indium selenide (In2Se3)","12056-07-4"]
[null,14,null,null,"セレン化モリブデン（ＭｏＳｅ２）","Molybdenum selenide (MoSe2)","12058-18-3"]
[null,14,null,null,"セレン化チタン（ＴｉＳｅ２）","Titanium selenide (TiSe2)","12067-45-7"]
[null,14,null,null,"セレン化タングステン（ＷＳｅ２）","Tungsten selenide (WSe2)","12067-46-8"]
[null,14,null,null,"セレン化ビスマス","Bismuth selenide (Bi2Se3)","12068-69-8"]
[null,14,null,null,"セレン化鉛","Lead selenide","12069-00-0"]
[null,14,null,null,"セレン化リチウム","Lithium selenide (Li2Se)","12136-60-6"]
[null,14,null,null,"セレン化ジルコニウム（ＺｒＳｅ２）","Zirconium selenide (ZrSe2)","12166-47-1"]
[null,14,null,null,"硫セレン化カドミウム","Cadmium selenide sulfide","12214-12-9"]
[null,14,null,null,"セレン化ベリリウム","Beryllium selenide","12232-25-6"]
[null,14,null,null,"セレン化バナジウム（ＶＳｅ２）","Vanadium selenide (VSe2)","12299-51-3"]
[null,14,null,null,"セレン化ヒ素（組成不定）","Arsenic selenide","12626-31-2"]
[null,14,null,null,"硫セレン化カドミウム","Cadmium selenide sulfide","12626-36-7"]
[null,14,null,null,"二酸化セレン","Selenium oxide","12640-89-0"]
[null,14,null,null,"硫セレン化カドミウム","Cadmium sulfoselenide orange","12656-57-4"]
[null,14,null,null,"セレン化銀","Silver selenide (Ag2Se)","1302-09-6"]
[null,14,null,null,"セレン化アルミニウム（Ａｌ２Ｓｅ３）","Aluminum selenide (Al2Se3)","1302-82-5"]
[null,14,null,null,"セレン化ヒ素（III）","Arsenic selenide (As2Se3)","1303-36-2"]
[null,14,null,null,"セレン化バリウム（ＢａＳｅ）","Barium selenide (BaSe)","1304-39-8"]
[null,14,null,null,"セレン化カドミウム","Cadmium selenide","1306-24-7"]
[null,14,null,null,"セレン化コバルト(Ⅱ)","Cobalt selenide (CoSe)","1307-99-9"]
[null,14,null,null,"セレン化鉄","Iron selenide (FeSe)","1310-32-3"]
[null,14,null,null,"セレン化マンガン（ＭｎＳｅ）","Manganese selenide (MnSe)","1313-22-0"]
[null,14,null,null,"セレン化ナトリウム","Sodium selenide (Na2Se)","1313-85-5"]
[null,14,null,null,"セレン化ニッケル","Nickel selenide","1314-05-2"]
[null,14,null,null,"セレン化アンチモン（Ｓｂ２Ｓｅ３）","Antimony selenide (Sb2Se3)","1315-05-5"]
[null,14,null,null,"セレン化スズ（ＳｎＳｅ）","Tin selenide (SnSe)","1315-06-6"]
[null,14,null,null,"セレン化ストロンチウム","Strontium selenide (SrSe)","1315-07-7"]
[null,14,null,null,"セレン化亜鉛","Zinc selenide (ZnSe)","1315-09-9"]
[null,14,null,null,"セレン化銅（II）","Copper selenide (CuSe)","1317-41-5"]
[null,14,null,null,"セレン酸ナトリウム","Selenic acid, disodium salt","13410-01-0"]
[null,14,null,null,"セレン酸マグネシウム・６水和物","Selenic acid, magnesium salt (1:1), hexahydrate (9CI)","13446-28-1"]
[null,14,null,null,"セレン酸・１水和物","Selenic acid, monohydrate (9CI)","13465-62-8"]
[null,14,null,null,"四フッ化セレン","Selenium tetrafluoride","13465-66-2"]
[null,14,null,null,"亜セレン酸亜鉛","Selenious acid, zinc salt (1:1)","13597-46-1"]
[null,14,null,null,"セレン化カドミウム (Cd0.95Se)","Cadmium selenide (Cd0.95Se)","136543-49-2"]
[null,14,null,null,"セレン化カドミウム (Cd0.98Se)","Cadmium selenide (Cd0.98Se)","136543-50-5"]
[null,14,null,null,"セレン化カドミウム (CdSe0.97)","Cadmium selenide (CdSe0.97)","136543-51-6"]
[null,14,null,null,"亜セレン酸バリウム","Selenious acid, barium salt (1:1)","13718-59-7"]
[null,14,null,null,"三酸化セレン（VI）","Selenium trioxide","13768-86-0"]
[null,14,null,null,"亜セレン酸カドミウム","Cadmium selenite","13814-59-0"]
[null,14,null,null,"セレン酸カドミウム","Cadmium selenate","13814-62-5"]
[null,14,null,null,"セレン酸カルシウム","CALCIUM SELENATE  ","14019-91-1"]
[null,14,null,null,"テトラキス（ジメチルカルバモジチオアト）セレン","Selenium tetrakis(dimethyldithiocarbamate)","144-34-3"]
[null,14,null,null,"亜セレン酸水銀（２）","Mercury(II) selenite","14459-36-0"]
[null,14,null,null,"セレン酸コバルト（II）","Selenic acid, cobalt(2+) salt (1:1)","14590-19-3"]
[null,14,null,null,"セレン酸マグネシウム","Selenium and its compounds","14986-91-5"]
[null,14,null,null,"セレン酸ニッケル（II）","Nickel selenate","15060-62-5"]
[null,14,null,null,"セレン酸銅（II）","Selenic acid, copper(II) salt (1:1)","15123-69-0"]
[null,14,null,null,"亜セレン酸タリウム（１＋）","Thallium selenite","15123-92-9"]
[null,14,null,null,"セレン化第一タリウム","Thallium selenide (Tl2Se)","15572-25-5"]
[null,14,null,null,"セレン酸リチウム","Selenium and its compounds","15593-52-9"]
[null,14,null,null,"ビス（ジメチルジチオカルバミド酸）セレン","Bis(dimethyldithiocarbamato-S,S')selenium","19632-73-6"]
[null,14,null,null,"セレン化水銀（２）","Mercury(II) selenide","20601-83-6"]
[null,14,null,null,"亜セレン酸ナトリウム・五水和物","Sodium selenite pentahydrate","26970-82-1"]
[null,14,null,null,"亜セレン酸カリウム・４水和物","Selenious acid, dipotassium salt, tetrahydrate (9CI)","41292-06-2"]
[null,14,null,null,"セレン化炭素","Carbon selenide (CSe2)","506-80-9"]
[null,14,null,null,"テトラキス（ジエチルジチオカルバミド酸）セレン","Selenium tetrakis(diethyldithiocarbamate)","5456-28-0"]
[null,14,null,null,"ジメチルセレン化合物","Dimethyl selenide","593-79-3"]
[null,14,null,null,"ジエチルセレン","Diethylselenium","627-53-2"]
[null,14,null,null,"亜セレン酸アンモニウム・１水和物","Selenious acid, diammonium salt, monohydrate (9CI)","66375-26-6"]
[null,14,null,null,"硫化セレン化カドミウム（ＣｄＳｅ０．５３Ｓ０．４７）","Cadmium selenide sulfide (CdSe0.53S0.47)","71243-75-9"]
[null,14,null,null,"二酸化セレン","SELENIUM COMPOUND, SOLID, N.O.S.","7446-08-4"]
[null,14,null,null,"セレン酸鉛(Ⅱ)","Lead selenate","7446-15-3"]
[null,14,null,null,"硫化セレン","Selenium sulfide (SeS)","7446-34-6"]
[null,14,null,null,"亜セレン酸鉛（２＋）","Lead(2+) selenite","7488-51-9"]
[null,14,null,null,"硫化セレン（IV）","Selenium disulfide","7488-56-4"]
[null,14,null,null,"亜セレン酸水素ナトリウム","Sodium hydrogen selenite","7782-82-3"]
[null,14,null,null,"亜セレン酸","Monohydrated selenium dioxide","7783-00-8"]
[null,14,null,null,"セレン化水素","Selenium hydride","7783-07-5"]
[null,14,null,null,"セレン酸","Selenic acid","7783-08-6"]
[null,14,null,null,"亜セレン酸アンモニウム","Ammonium selenite","7783-19-9"]
[null,14,null,null,"セレン酸アンモニウム","Selenic acid, diammonium salt","7783-21-3"]
[null,14,null,null,"フッ化セレン（ＶＩ）","Selenium hexafluoride","7783-79-1"]
[null,14,null,null,"セレン酸バリウム","Selenic acid, barium salt (1:1)","7787-41-9"]
[null,14,null,null,"セレン酸コバルト（II）・６水和物","Selenic acid, cobalt(2+) salt (1:1), hexahydrate (9CI)","7788-94-5"]
[null,14,null,null,"四臭化セレン","Selenium tetrabromide","7789-65-3"]
[null,14,null,null,"セレン酸カリウム","Selenic acid, dipotassium salt","7790-59-2"]
[null,14,null,null,"セレン酸リチウム・１水和物","Selenic acid, dilithium salt, monohydrate (8CI, 9CI)","7790-71-8"]
[null,14,null,null,"セレン酸カルシウム・２水和物","Selenic acid, calcium salt (1:1), dihydrate (9CI)","7790-74-1"]
[null,14,null,null,"セレン化金（２：１）","Gold diselenide","88608-76-8"]
[null,15,"長鎖型塩化パラフィン類(C18-C30)","Long-Chain Chlorinated Paraffins(C18-C30)","長鎖型塩化パラフィン類(C18-C30)","Long-Chain Chlorinated Paraffins(C18-C30)","EP-SN1077","EP-SN1077"]
[null,16,"ペルフルオロヘキサンスルホン酸（PFHxS）とその塩及び関連物質","Perfluorohexane sulfonic acid (PFHxS) and its salts and related substances","ペルフルオロヘキサンスルホン酸（PFHxS）とその塩及び関連物質","Perfluorohexane sulfonic acid (PFHxS) and its salts and related substances","EP-SN1078","EP-SN1078"]
[null,17,"ペルフルオロヘキサン酸（PFHxA）とその塩および関連物質","Perfluorohexanoic acid (PFHxA) and its salts and related substances","ペルフルオロヘキサン酸（PFHxA）とその塩および関連物質","Perfluorohexanoic acid (PFHxA) and its salts and related substances","EP-SN1079","EP-SN1079"]
[null,18,"長鎖ペルフルオロカルボン酸 （LCPFCA）C9–C20とその塩及び関連物質","Long-chain perfluorocarboxylic acid (LCPFCA) C9-C20 and its salts and related substances","長鎖ペルフルオロカルボン酸 （LCPFCA）C9–C20とその塩及び関連物質","Long-chain perfluorocarboxylic acid (LCPFCA) C9-C20 and its salts and related substances","EP-SN1080","EP-SN1080"]

{"sheet":"Out put","index":8,"n_rows":18,"n_cols":26,"rows_kept":18,"cut":false,"hidden":true,"merged":[[1,0,1,6],[8,11,8,16],[9,11,9,16],[10,11,10,16],[4,0,5,7],[6,1,10,6],[11,11,11,16],[4,8,4,10],[5,8,5,10],[6,8,6,10],[7,8,7,10],[8,8,8,10],[4,11,4,16],[5,11,5,16],[6,11,6,16],[7,11,7,16],[9,8,9,10],[10,8,10,10],[11,8,11,10]]}
[]
["セイコーエプソン株式会社 マイクロデバイス事業部　水晶デバイス事業　 宛て\nTo. SEIKO EPSON CORPORATION   (QUARTZ DEVICE BUSINESS)\n精工爱普生有限公司  微型制品事业部  水晶制品事业",null,null,null,null,null,null,null,null,null,null,null,null,null,null,null,"Ver,6.0"]
[]
[]
["セイコーエプソン㈱　マイクロデバイス事業部(水晶デバイス事業）　禁止管理物質に対する保証書\n (SEIKO EPSON (Quartz Device Business)  Guarantee of \"Banned & Control substance\")\n (精工爱普生有限公司  微型制品事业部（(水晶制品事业）禁止管理物质保证书)",null,null,null,null,null,null,null,"回答日\n(Date of data entry / 回答日)"]
[null,null,null,null,null,null,null,null,"一次取引先会社名（回答会社）\n(Vendor name / 供应商公司名（回答公司）)"]
[null,"当社は、「生産材グリーン購入基準書」に基づき、本件保証書を貴社に提出します。\n別紙の貴社指定物質について、下記の通りである事を保証します。\nまた、保証内容に変更が生じた場合、当社は当該変更内容を速やかに貴社へ報告します。\n(We submit this certification to you based on \"the Green Purchasing Standard for Production Materials\".\n The substance in \"Attached\" proves the thing that is as follows. \n When the change is caused in the content, We'll report the change contents concerned to you promptly.)\n(本公司根据【生产材绿色购入基准书】，向贵公司提出本保证书\n 关于别纸1的贵公司制定物质，保证以下内容\n 另，保证内容变更的时候，本公司立刻向贵公司报告)",null,null,null,null,null,null,"回答部署名\n(Organization name / 回答部门)"]
[null,null,null,null,null,null,null,null,"回答責任者　氏名／役職\n(Responsible person / 回答责任者      姓名/职务)"]
[null,null,null,null,null,null,null,null,"回答者　氏名\n(Contact person / 回答者姓名)"]
[null,null,null,null,null,null,null,null,"電話番号\n(TEL / 电话号码)"]
[null,null,null,null,null,null,null,null,"E-mail"]
[null,null,null,null,null,null,null,null,"製造会社名*\n(Manufacturer's name* / 制造公司名*)"]
[null,null,null,null,null,null,null,null,"*一次取引先と製造会社が同じ場合、製造会社名は記載不要"]
[null,null,null,null,null,null,null,null,"*When the Vendor and the Manufacture are the same, the description of the Manufacturer's name is unnecessary. "]
[null,null,null,null,null,null,null,null,"*供应商名与制造公司名相同的时候，制造公司名称可以不记入"]
[]
[null,"No,","品名 (Parts name)","型式 (Parts number)",null,"無条件禁止物質","禁止物質 (Banned Substance)",null,null,null,null,null,null,"禁止物質（閾値あり）",null,null,null,null,null,"管理物質"]
[null,null,null,null,null," (Unconditionally Banned Substance)\n (无条件禁止物质)",null,"含有量(ppm)\nContained (ppm)","CAS No,","物質名\nSubstance name","含有部位\nContained part","含有目的\nUsage","適用除外No\n(Exclusion item No)"," (Banned Substance with threshold)\n (禁止物质（有界限值）)","含有量(ppm)\nContained (ppm)","CAS No,","物質名\nSubstance name","含有部位\nContained part","含有目的\nUsage"," (Control substance)","含有量(ppm)\nContained (ppm)","CAS No,","物質名\nSubstance name","含有部位\nContained part","含有目的\nUsage","分類\n(Identification)"]

{"sheet":"CriteriaRange","index":9,"n_rows":2,"n_cols":1,"rows_kept":2,"cut":false,"hidden":true,"merged":[]}
["物質名(日）/Substance name(JPN)"]
["*ヒ素*"]

{"sheet":"SearchChemical","index":10,"n_rows":2,"n_cols":3,"rows_kept":2,"cut":false,"hidden":true,"merged":[]}
["物質名(日）/Substance name(JPN)","物質名(英）/Substance name(EN)","CAS No"]
["ヒ素及びその化合物","Arsenic and its compounds","EP-SN1059"]

{"sheet":"Settings","index":11,"n_rows":93,"n_cols":39,"rows_kept":93,"cut":false,"hidden":true,"merged":[[40,1,40,4],[40,5,40,17],[44,1,44,4],[44,5,44,17],[45,1,45,4],[45,5,45,17],[46,1,46,4],[46,5,46,17],[41,1,41,4],[41,5,41,17],[42,1,42,4],[42,5,42,17],[43,1,43,4],[43,5,43,17],[29,1,29,4],[29,5,29,17],[30,5,30,17],[31,1,31,4],[31,5,31,17],[38,1,38,4],[38,5,38,17],[39,1,39,4],[39,5,39,17],[35,1,35,4],[35,5,35,17],[36,1,36,4],[36,5,36,17],[37,1,37,4],[37,5,37,17],[32,1,32,4],[32,5,32,17],[33,1,33,4],[33,5,33,17],[34,1,34,4],[34,5,34,17],[30,1,30,4],[50,5,50,17],[51,1,51,4],[51,5,51,17],[52,1,52,4],[52,5,52,17],[47,1,47,4],[47,5,47,17],[48,1,48,4],[48,5,48,17],[49,1,49,4],[49,5,49,17],[50,1,50,4],[56,1,56,4],[56,5,56,17],[57,1,57,4],[57,5,57,17],[58,1,58,4],[58,5,58,17],[53,1,53,4],[53,5,53,17],[54,1,54,4],[54,5,54,17],[55,1,55,4],[55,5,55,17],[62,1,62,4],[62,5,62,17],[63,1,63,4],[63,5,63,17],[64,1,64,4],[64,5,64,17],[59,1,59,4],[59,5,59,17],[60,1,60,4],[60,5,60,17],[61,1,61,4],[61,5,61,17],[68,1,68,4],[68,5,68,17],[69,1,69,4],[69,5,69,17],[70,1,70,4],[70,5,70,17],[65,1,65,4],[65,5,65,17],[66,1,66,4],[66,5,66,17],[67,1,67,4],[67,5,67,17],[77,1,77,4],[77,5,77,17],[74,1,74,4],[74,5,74,17],[75,1,75,4],[75,5,75,17],[76,1,76,4],[76,5,76,17],[71,1,71,4],[71,5,71,17],[72,1,72,4],[72,5,72,17],[73,1,73,4],[73,5,73,17],[78,1,78,4],[78,5,78,17],[79,1,79,4],[79,5,79,17],[83,1,83,4],[83,5,83,17],[84,1,84,4],[84,5,84,17],[85,1,85,4],[85,5,85,17],[80,1,80,4],[80,5,80,17],[81,1,81,4],[81,5,81,17],[82,1,82,4],[82,5,82,17],[92,1,92,4],[92,5,92,17],[88,1,88,4],[88,5,88,17],[89,1,89,4],[89,5,89,17],[90,1,90,4],[90,5,90,17],[86,1,86,4],[86,5,86,17],[87,1,87,4],[87,5,87,17],[91,1,91,4],[91,5,91,17]]}
["シート関係",null,null,null,"ヘッダー",null,null,null,"設問2",null,null,null,"設問3",null,null,null,"設問4",null,null,null,"表紙",null,null,null,"帳票",null,null,null,"System出力",null,null,null,"グローバル変数",null,null,null,"Temporary"]
[null,"シート名","実シート名",null,null,"項目名","場所",null,null,"項目名","場所",null,null,"項目名","場所",null,null,"項目名","場所",null,null,"項目名","場所",null,null,"項目名","場所",null,null,"項目名","場所",null,null,"項目名","場所",null,null,"項目名","場所"]
[null,"表紙","List",null,null,"No","C6",null,null,"開始行",26,null,null,"開始行",46,null,null,"開始行",71,null,null,"開始行",8,null,null,"開始行",19,null,null,"開始行",2,null,null,"ロックフラグ",true,null,null,"無条件禁止",1]
[null,"入力帳票","Input",null,null,"品名","D6",null,null,"含有量(ppm)",6,null,null,"含有量(ppm)",6,null,null,"含有量(ppm)",6,null,null,"No.",2,null,null,"No.",2,null,null,"品目コード",1,null,null,null,null,null,null,"禁止使用",2]
[null,"別表1","Attached_1",null,null,"型式","G6",null,null,"CAS No,",7,null,null,"CAS No,",7,null,null,"CAS No,",7,null,null,"品名",3,null,null,"品名",3,null,null,"区分",2,null,null,null,null,null,null,"含有量",3]
[null,"別表2","Attached_2",null,null,"品目コード",null,null,null,"物質名",8,null,null,"物質名",8,null,null,"物質名",8,null,null,"型式",4,null,null,"型式",4,null,null,"含有量",3,null,null,null,null,null,null,"CAS No,",4]
[null,"別表3","Attached_3",null,null,"入力状況","I6",null,null,"含有部位",9,null,null,"含有部位",9,null,null,"含有部位",9,null,null,"品目コード",5,null,null,"無条件禁止物質",6,null,null,"CAS No,",4,null,null,null,null,null,null,"物質名",5]
[null,"別表4","Attached_4",null,null,"評価ランク","J6",null,null,"含有目的",10,null,null,"含有目的",10,null,null,"含有目的",10,null,null,"入力状況",6,null,null,"禁止物質（意図的添加の有無）",7,null,null,"含有部位",5,null,null,null,null,null,null,"含有部位",6]
[null,"帳票","Out put",null,null,null,null,null,null,"適用除外No,",11,null,null,"別表3の検索範囲","C4:E24",null,null,"分類",11,null,null,"評価ランク",7,null,null,"含有量",8,null,null,"含有目的",6,null,null,null,null,null,null,"含有目的",7]
[null,"Rohs","Exclusion item",null,null,null,null,null,null,"別表2の検索範囲","C4:E73",null,null,"CAS Noチェック範囲","E5:E24",null,null,"別表4の検索範囲","E4:G281",null,null,"入力チェック","1:済み (Has input it)",null,null,"CAS No,",9,null,null,"適用除外No",7,null,null,null,null,null,null,"適用除外No",8]
[null,null,null,null,null,null,null,null,null,"除外チェック対象物資範囲","C5:E9",null,null,"検索画面初期検索範囲","C5:E24",null,null,"分類マスタ","1.使用 (Used)",null,null,"入力チェック","2:未入力 (Not input)",null,null,"物質名",10,null,null,"分類",8,null,null,null,null,null,null,"禁止閾値",9]
[null,null,null,null,null,null,null,null,null,"CAS Noチェック範囲","E5:E73",null,null,null,"↑別表2から範囲指定",null,null,"分類マスタ","2.不純物 (Impurities)",null,null,"Noの検索範囲","B8:B280",null,null,"含有部位",11,null,null,null,null,null,null,null,null,null,null,"含有量",10]
[null,null,null,null,null,null,null,null,null,"検索画面初期検索範囲","C5:E73",null,null,null,null,null,null,"CAS Noチェック範囲","G5:G281",null,null,null,null,null,null,"含有目的",12,null,null,null,null,null,null,null,null,null,null,"CAS No,",11]
[null,null,null,null,null,null,null,null,null,null,null,null,null,null,null,null,null,"検索画面初期検索範囲","E5:G281",null,null,null,null,null,null,"適用除外No",13,null,null,null,null,null,null,null,null,null,null,"物質名",12]
[null,null,null,null,null,null,null,null,null,null,null,null,null,null,null,null,null,null,null,null,null,null,null,null,null,"禁止物質（閾値への適合）",14,null,null,null,null,null,null,null,null,null,null,"含有部位",13]
[null,null,null,null,null,null,null,null,null,null,null,null,null,null,null,null,null,"分類マスタ",null,null,null,"入力済みマスタ",null,null,null,"含有量",15,null,null,null,null,null,null,null,null,null,null,"含有目的",14]
[null,null,null,null,null,null,null,null,null,null,null,null,null,null,null,null,null,"1.使用 (Used)",null,null,null,"1:済み (Has input it)",null,null,null,"CAS No,",16,null,null,null,null,null,null,null,null,null,null,"管理使用",15]
[null,null,null,null,null,null,null,null,null,null,null,null,null,null,null,null,null,"2.不純物 (Impurities)",null,null,null,"2:未入力 (Not input)",null,null,null,"物質名",17,null,null,null,null,null,null,null,null,null,null,"管理不純物",16]
[null,null,null,null,null,null,null,null,null,null,null,null,null,null,null,null,null,null,null,null,null,null,null,null,null,"含有部位",18,null,null,"区分マスタ",null,null,null,null,null,null,null,"含有量",17]
[null,null,null,null,null,null,null,null,null,null,null,null,null,null,null,null,null,null,null,null,null,null,null,null,null,"含有目的",19,null,null,"環境負荷物質(レベル１)","Banned_Use",null,null,null,null,null,null,"CAS No,",18]
[null,null,null,null,null,null,null,null,null,null,null,null,null,null,null,null,null,null,null,null,null,null,null,null,null,"管理物質",20,null,null,"環境負荷物質(レベル２)","Banned_Threshold",null,null,null,null,null,null,"物質名",19]
[null,null,null,null,null,null,null,null,null,null,null,null,null,null,null,null,null,null,null,null,null,null,null,null,null,"含有量",21,null,null,"管理物質を使用","Controlled_Use",null,null,null,null,null,null,"含有部位",20]
[null,null,null,null,null,null,null,null,null,null,null,null,null,null,null,null,null,null,null,null,null,null,null,null,null,"CAS No,",22,null,null,"管理物質を不純物","Controlled_Impurities",null,null,null,null,null,null,"含有目的",21]
[null,null,null,null,null,null,null,null,null,null,null,null,null,null,null,null,null,null,null,null,null,null,null,null,null,"物質名",23,null,null,null,null,null,null,null,null,null,null,"分類",22]
[null,null,null,null,null,null,null,null,null,null,null,null,null,null,null,null,null,null,null,null,null,null,null,null,null,"含有部位",24]
[null,null,null,null,null,null,null,null,null,null,null,null,null,null,null,null,null,null,null,null,null,null,null,null,null,"含有目的",25]
[null,null,null,null,null,null,null,null,null,null,null,null,null,null,null,null,null,null,null,null,null,null,null,null,null,"分類",26]
[null,null,null,null,null,null,null,null,null,null,null,null,null,null,null,null,null,null,null,null,null,null,null,null,null,"回答日\nDate of data entry","L5"]
["メッセージ",null,null,null,null,null,null,null,null,null,null,null,null,null,null,null,null,null,null,null,null,null,null,null,null,"一次取引先会社名（回答会社）\nVendor name","L6"]
[null,"メッセージ名",null,null,null,"メッセージ",null,null,null,null,null,null,null,null,null,null,null,null,null,null,null,null,null,null,null,"回答部署名\nOrganization name (Signature)","L7"]
[null,"除外用途警告メッセージ",null,null,null,"設問２にて、除外項目が入力されていませんがよろしいですか?\n(The exclusion item is not input to Question2. Is it good? / 第2个问题，除外项目没有入力，是否可以？)",null,null,null,null,null,null,null,null,null,null,null,null,null,null,null,null,null,null,null,"回答責任者　氏名／役職\nResponsible person","L8"]
[null,"設問１未チェックメッセージ",null,null,null,"設問１にチェックが付いていません。\n(The check has not adhered to Question 1. / 第1个问题没有检查)",null,null,null,null,null,null,null,null,null,null,null,null,null,null,null,null,null,null,null,"回答者　氏名\nContact person","L9"]
[null,"設問２含有量メッセージ",null,null,null,"　含有量が入力されていません。\n  (The contained(ppm) is not input. / 未输入含有量)",null,null,null,null,null,null,null,null,null,null,null,null,null,null,null,null,null,null,null,"電話番号\nTEL","L10"]
[null,"設問２含有部位メッセージ",null,null,null,"　含有部位が入力されていません。\n  (The contained part is not input. / 未输入含有部位)",null,null,null,null,null,null,null,null,null,null,null,null,null,null,null,null,null,null,null,"E-mail","L11"]
[null,"設問２含有目的メッセージ",null,null,null,"　含有目的が入力されていません。\n  (The usage is not input. / 未输入含有目的)",null,null,null,null,null,null,null,null,null,null,null,null,null,null,null,null,null,null,null,"製造会社名\nManufacturer's name","L12"]
[null,"設問２物質未入力メッセージ",null,null,null,"設問２の物質が入力されていません。\n(The substance in Question2 is not input. / 第2个问题的物质没有输入)"]
[null,"設問２未チェックメッセージ",null,null,null,"設問２にチェックが付いていません。\n(The check has not adhered to Question 2. / 第2个问题没有检查)"]
[null,"設問３含有量メッセージ",null,null,null,"　含有量が入力されていません。\n  (The contained(ppm) is not input. / 未输入含有量)"]
[null,"設問３含有部位メッセージ",null,null,null,"　含有部位が入力されていません。\n  (The contained part is not input. / 未输入含有部位)"]
[null,"設問３含有目的メッセージ",null,null,null,"　含有目的が入力されていません。\n  (The usage is not input. / 未输入含有目的)"]
[null,"設問３物質未入力メッセージ",null,null,null,"設問３の物質が入力されていません。\n(The substance in Question3 is not input.  / 第3个问题的物质没有输入)"]
[null,"設問３未チェックメッセージ",null,null,null,"設問３にチェックが付いていません。\n(The check has not adhered to Question 3. / 第3个问题没有检查)"]
[null,"設問４含有量メッセージ",null,null,null,"　含有量が入力されていません。\n  (The contained(ppm) is not input. / 未输入含有量)"]
[null,"設問４含有部位メッセージ",null,null,null,"　含有部位が入力されていません。\n  (The contained part is not input. / 未输入含有部位)"]
[null,"設問４含有目的メッセージ",null,null,null,"　含有目的が入力されていません。\n  (The usage is not input. / 未输入含有目的)"]
[null,"設問４物質未入力メッセージ",null,null,null,"設問４の物質が入力されていません。または、分類が間違っている可能性があります。\n(The substance in Question4 is not input or there is a possibility that the identification is wrong. \n / 第4个问题的物质没有输入，又，有可能分类错误)"]
[null,"設問４未チェックメッセージ",null,null,null,"設問４にチェックが付いていません。\n(The check has not adhered to Question 4. / 第4个问题没有检查)"]
[null,"設問５含有量メッセージ",null,null,null,"　含有量が入力されていません。\n  (The contained(ppm) is not input. / 未输入含有量)"]
[null,"設問５含有部位メッセージ",null,null,null,"　含有部位が入力されていません。\n  (The contained part is not input. / 未输入含有部位)"]
[null,"設問５含有目的メッセージ",null,null,null,"　含有目的が入力されていません。\n  (The usage is not input. / 未输入含有目的)"]
[null,"設問５物質未入力メッセージ",null,null,null,"設問５の物質が入力されていません。または、分類が間違っている可能性があります。\n(The substance in Question5 is not input or there is a possibility that the identification is wrong. \n / 第5个问题的物质没有输入，又，有可能分类错误)"]
[null,"設問５未チェックメッセージ",null,null,null,"設問５にチェックが付いていません。\n(The check has not adhered to Question 5. / 第5个问题没有检查)"]
[null,"化学物質マスタエラー",null,null,null,"マスタに存在していません。\n(The master does not have the input substance. / 标准不存在)"]
[null,"設問１結果",null,null,null,"無条件禁止物質を含有していません。\n(\"Unconditionally Banned Substance\" is not contained. / 不含有无条件禁止物质)"]
[null,"設問２結果A",null,null,null,"禁止物質を使用していません。\n(\"Banned Substance\" is not used. / 不使用禁止物质)"]
[null,"設問２結果C",null,null,null,"禁止物質を使用しています。\n(\"Banned Substance\" is used. / 使用禁止物质)"]
[null,"設問３結果A",null,null,null,"禁止物質の閾値を満足します。\n(Threshold of \"Banned Substance\" is contented. / 满足禁止物质的界限值)"]
[null,"設問３結果C",null,null,null,"禁止物質の閾値を満足しません。\n(Threshold of \"Banned Substance\" is not contented. / 不满足禁止物质的界限值)"]
[null,"設問４結果A/設問５結果A",null,null,null,"管理物質を含有していません。\n(Does not contain the control substance. / 不含有管理物质)"]
[null,"設問４結果A/設問５結果B",null,null,null,"管理物質を使用していませんが、不純物として存在します。\n(It does exist as impurities though the control substance is not used.\n /不使用管理物质，存在不纯物)"]
[null,"設問４結果B/設問５結果A",null,null,null,"管理物質を使用していますが、不純物として存在しません。\n(It does not exist as impurities though the control substance is used.\n / 使用管理物质，不存在不纯物)"]
[null,"設問４結果B/設問５結果B",null,null,null,"管理物質が使用、及び不純物として存在します。\n(The control substance exists as use and impurities.  / 使用管理物质，且存在不纯物)"]
[null,"未入力品目メッセージ",null,null,null,"未入力の品目が存在しています。\n(Parts of the uninput exists. / 有未入力的品目)"]
[null,"コピーエラーメッセージ",null,null,null,"未入力の品目のためコピーできません。\n(It is not possible to copy it because of the Parts of the uninput. / 因为未入力的品目，不可拷贝)"]
[null,"入力エラーメッセージ",null,null,null,"対象の品目を選択してください。\n(Please select the Parts of the object. / 请选择对象品目)"]
[null,"エラーメッセージ",null,null,null,"エラーが発生しました。(The error occurred.)\n(Error No: / 有错误发生)"]
[null,"化学物質マスタ選択エラー",null,null,null,"化学物質マスタ選択エラー\n(Chemical substance master selection error / 化学物质标准选择错误)"]
[null,"帳票への出力完了メッセージ",null,null,null,"Outputが完了しました。\n(Output was completed.  / 输出完成)"]
[null,"回答日エラー",null,null,null,"*[回答日(Date of data entry / 回答日)]"]
[null,"一次取引先エラー",null,null,null,"*[一次取引先会社名 (Vendor name / 供应商公司名（回答公司）)]"]
[null,"回答部署エラー",null,null,null,"*[回答部署名 (Organization name (Signature / 回答部门))]"]
[null,"回答責任者エラー",null,null,null,"*[回答責任者 (Responsible person / 回答责任者)]"]
[null,"回答者エラー",null,null,null,"*[回答者 (Contact person / 回答者)]"]
[null,"電話番号エラー",null,null,null,"*[電話番号 (TEL / 电话号码)]"]
[null,"Emailエラー",null,null,null,"*[E-mail]"]
[null,"製造会社エラー",null,null,null,"*[製造会社名 (Manufacturer's name / 制造公司名)]"]
[null,"サプライヤーチェックOK",null,null,null,"サプライヤーチェック結果：OKです。  \n(Check Supplier OK. / 供应商检查结果：OK)"]
[null,"サプライヤーチェックNG",null,null,null,"サプライヤーチェック結果：NGです。\n(Check Supplier NG. / 供应商检查结果：NG)"]
[null,"ロック成功",null,null,null,"ロックしました。\n(locked. / 已锁定)"]
[null,"ロック失敗",null,null,null,"ロック対象行がありません。\n(There is no lock target row. / 无锁定对象行)"]
[null,"アンロックパスワード入力",null,null,null,"アンロックのパスワードを入力して下さい。\n(Please enter the password for unlocking / 请输入解锁密码)"]
[null,"パスワード確認",null,null,null,"パスワード確認\n(Password confirmation / 确认密码)"]
[null,"アンロック成功",null,null,null,"アンロックしました。\n(Was unlocked. / 已解锁)"]
[null,"アンロック失敗",null,null,null,"アンロック対象行がありません。\n(There is no unlock target row / 无解锁对象行)"]
[null,"処理中止",null,null,null,"処理を中止しました。\n(Stop the process / 已处理中止)"]
[null,"パスワード間違い",null,null,null,"パスワードが違う為にアンロック処理は出来ません。\n(Since the password is wrong, you can not unlock processing / 密码错误，不可解锁)"]
[null,"保存時メッセージ",null,null,null,"表紙に戻ってから保存してください。\n(Please preserve it after returns to the List.  / 请返回表纸保存)"]
[null,"表紙に品目が登録されていない場合のエラー",null,null,null,"品目が登録されていません。\n(The parts is not registered.  / 品目未登陆)"]
[null,"コピー完了",null,null,null,"品目のコピーが完了しました。\n(The copy of the parts was completed.  / 品目拷贝完成)"]
[null,"コピー警告",null,null,null,"一度にコピーできるのは、50件までです。\n(Parts that can be copied at a time are up to 50 parts.  / 一次最多拷贝50件)"]
[null,"コピー選択エラー",null,null,null,"コピー先の品目を選択してください。\n(Please select the parts at the copy destination.  / 请选择要拷贝的品目)"]
[null,"コピー確認",null,null,null,"すでに入力済みの品目が選択されています。上書きコピーしてもよろしいでしょうか？\n(Parts that completed the input was selected. May overwrite? / 选中了输入完成的品目，是否要覆盖保存?)"]
[null,"戻る確認",null,null,null,"入力途中の情報は消えてしまいますがよろしいですか？\n(Information on the input is deleted. Is it good? / 是否取消输入中的情报？)"]

{"sheet":"SysOut","index":12,"n_rows":1,"n_cols":7,"rows_kept":1,"cut":false,"hidden":true,"merged":[]}
["品目コード","区分","含有量","CASNo","部位","目的","Rohs"]

{"sheet":"Temp","index":13,"n_rows":0,"n_cols":0,"rows_kept":0,"cut":false,"hidden":true,"merged":[]}